Workbook

Sheet Quotatore
W1: 2023-12-31
C8: TIPOLOGIA PRODOTTO | E8: Rimborso spese mediche | G8: DATA EFFETTO | I8: =TODAY() -> 2023-01-16
C10: N. ASSICURATI | E10: 1
C12: SCONTO NUCLEO | E12: NO | G12: Lo sconto nucleo è concedibile se si assicura la totalità del nucleo familiare come risultante da stato di famiglia con la possibilità di includere anche i figli non conviventi fino all'indipendenza economica comunque non oltre i 30 anni, purchè residenti in italia.
C16: ASSICURATO | E16: Assicurato 1 | G16: =IF($E$10>=2,"Assicurato 2","") ->  | I16: =IF($E$10>=3,"Assicurato 3","") ->  | K16: =IF($E$10>=4,"Assicurato 4","") ->  | M16: =IF($E$10>=5,"Assicurato 5","") ->  | O16: =IF($E$10>=6,"Assicurato 6","") ->  | Q16: =IF($E$10>=7,"Assicurato 7","") ->  | S16: =IF($E$10>=8,"Assicurato 8","") -> 
C18: DATA NASCITA | E18: 1969-07-30
C20: ETÀ | E20: =IF(c_datanascita1<>"",DATEDIF(c_datanascita1,c_dataeffetto,"y"),"") -> 53 | G20: =IF(c_datanascita2<>"",DATEDIF(c_datanascita2,c_dataeffetto,"y"),"") ->  | I20: =IF(c_datanascita3<>"",DATEDIF(c_datanascita3,c_dataeffetto,"y"),"") ->  | K20: =IF(c_datanascita4<>"",DATEDIF(c_datanascita4,c_dataeffetto,"y"),"") ->  | M20: =IF(c_datanascita5<>"",DATEDIF(c_datanascita5,c_dataeffetto,"y"),"") ->  | O20: =IF(c_datanascita6<>"",DATEDIF(c_datanascita6,c_dataeffetto,"y"),"") ->  | Q20: =IF(c_datanascita7<>"",DATEDIF(c_datanascita7,c_dataeffetto,"y"),"") ->  | S20: =IF(c_datanascita8<>"",DATEDIF(c_datanascita8,c_dataeffetto,"y"),"") -> 
A23: =IF(OR(AND(E28<>"",E28<>parametri!$C$3,E28<>parametri!$C$4,E28<>parametri!$C$5,E28<>parametri!$C$6,E28<>parametri!$C$7),AND(G28<>"",G28<>parametri!$C$3,G28<>parametri!$C$4,G28<>parametri!$C$5,G28<>parametri!$C$6,G28<>parametri!$C$7),AND(I28<>"",I28<>parametri!$C$3,I28<>parametri!$C$4,I28<>parametri!$C$5,I28<>parametri!$C$6,I28<>parametri!$C$7),AND(K28<>"",K28<>parametri!$C$3,K28<>parametri!$C$4,K28<>parametri!$C$5,K28<>parametri!$C$6,K28<>parametri!$C$7),AND(M28<>"",M28<>parametri!$C$3,M28<>parametri!$C$4,M28<>parametri!$C$5,M28<>parametri!$C$6,M28<>parametri!$C$7),AND(O28<>"",O28<>parametri!$C$3,O28<>parametri!$C$4,O28<>parametri!$C$5,O28<>parametri!$C$6,O28<>parametri!$C$7),AND(Q28<>"",Q28<>parametri!$C$3,Q28<>parametri!$C$4,Q28<>parametri!$C$5,Q28<>parametri!$C$6,Q28<>parametri!$C$7),AND(S28<>"",S28<>parametri!$C$3,S28<>parametri!$C$4,S28<>parametri!$C$5,S28<>parametri!$C$6,S28<>parametri!$C$7),AND(E32<>"",E32<>parametri!$K$3,E32<>parametri!$K$4,E32<>parametri!$K$5),AND(G32<>"",G32<>parametri!$K$3,G32<>parametri!$K$4,G32<>parametri!$K$5),AND(I32<>"",I32<>parametri!$K$3,I32<>parametri!$K$4,I32<>parametri!$K$5),AND(K32<>"",K32<>parametri!$K$3,K32<>parametri!$K$4,K32<>parametri!$K$5),AND(M32<>"",M32<>parametri!$K$3,M32<>parametri!$K$4,M32<>parametri!$K$5),AND(O32<>"",O32<>parametri!$K$3,O32<>parametri!$K$4,O32<>parametri!$K$5),AND(Q32<>"",Q32<>parametri!$K$3,Q32<>parametri!$K$4,Q32<>parametri!$K$5),AND(S32<>"",S32<>parametri!$K$3,S32<>parametri!$K$4,S32<>parametri!$K$5)),"Entrare nelle celle evidenziate in rosso per aggiornare i massimali","") -> 
C24: RIMBORSO SPESE MEDICHE
B26: SEZIONE MALATTIE | E26: =E$16 -> Assicurato 1 | G26: =G$16 ->  | I26: =I$16 ->  | K26: =K$16 ->  | M26: =M$16 ->  | O26: =O$16 ->  | Q26: =Q$16 ->  | S26: =S$16 -> 
C28: RIMBORSO SPESE MEDICHE | E28: SILVER | W28: =c_normal -> NORMAL
C30: RADDOPPIO PRESTAZIONI PER GRANDI INTERVENTI | E30: NO
C32: PRESTAZIONE INTEGRATIVA PER INTERVENTI CHIRURGICI | E32: NO
C34: Scoperto fuori network | E34: NO
C36: Franchigia | E36: NO
C38: Retta per l'accompagnatore | E38: NO
C40: Spese pre/post ricovero senza int | E40: NO
C42: Premio netto | E42: =SUM(E119:S121) -> 4305.33
B46: SEZIONE ASSISTENZA | E46: =E$16 -> Assicurato 1 | G46: =G$16 ->  | I46: =I$16 ->  | K46: =K$16 ->  | M46: =M$16 ->  | O46: =O$16 ->  | Q46: =Q$16 ->  | S46: =S$16 -> 
C48: ASSISTENZA | E48: =IF($E$8=c_rsm,"SI","NO") -> SI | G48: =IF(AND($E$8=c_rsm,$E$10>=2),"SI","NO") -> NO | I48: =IF(AND($E$8=c_rsm,$E$10>=3),"SI","NO") -> NO | K48: =IF(AND($E$8=c_rsm,$E$10>=4),"SI","NO") -> NO | M48: =IF(AND($E$8=c_rsm,$E$10>=5),"SI","NO") -> NO | O48: =IF(AND($E$8=c_rsm,$E$10>=6),"SI","NO") -> NO | Q48: =IF(AND($E$8=c_rsm,$E$10>=7),"SI","NO") -> NO | S48: =IF(AND($E$8=c_rsm,$E$10>=8),"SI","NO") -> NO
C50: Premio netto | E50: =SUM(E122:S122) -> 16.53
C52: SOLUZIONE EXTRARICOVERO
B54: SEZIONE MALATTIE | E54: =E$16 -> Assicurato 1 | G54: =G$16 ->  | I54: =I$16 ->  | K54: =K$16 ->  | M54: =M$16 ->  | O54: =O$16 ->  | Q54: =Q$16 ->  | S54: =S$16 -> 
C56: VISITE SPECIALISTICHE E ACCERTAMENTI DIAGNOSTICI | E56: Deluxe
C57: Rinuncia alla forma diretta | E57: NO
C59: Premio netto | E59: =SUM(E136:S136) -> 322.86
C63: DIARIA
B65: SEZIONE MALATTIE | E65: =E$16 -> Assicurato 1 | G65: =G$16 ->  | I65: =I$16 ->  | K65: =K$16 ->  | M65: =M$16 ->  | O65: =O$16 ->  | Q65: =Q$16 ->  | S65: =S$16 -> 
C68: DIARIA
C70: Tipo diaria
C72: Diaria per l'accompagnatore
C74: Convalescenza da malattia/parto
C76: Ingessatura
C78: Premio netto | E78: =SUM(E144:S144) -> 0
B82: SEZIONE ASSISTENZA | E82: =E$16 -> Assicurato 1 | G82: =G$16 ->  | I82: =I$16 ->  | K82: =K$16 ->  | M82: =M$16 ->  | O82: =O$16 ->  | Q82: =Q$16 ->  | S82: =S$16 -> 
C84: ASSISTENZA
C86: Premio netto | E86: =SUM(E145:S145) -> 0
C90: =IF(c_prodotto=c_rsm,"RIMBORSO SPESE MEDICHE",IF(c_prodotto=c_diaria,"DIARIA","")) -> RIMBORSO SPESE MEDICHE | M90: =IF(AND(c_prodotto=c_rsm,T134>=1),"SOLUZIONE ETRARICOVERO","") -> SOLUZIONE ETRARICOVERO
C92: DIRITTI | E92: NO | M92: DIRITTI | O92: NO | Y92: ANNUO | AA92: FRAZ con INT
C94: FRAZIONAMENTO | E94: Annuale | G94: Annuo | I94: di Rata | M94: FRAZIONAMENTO | O94: Annuale | Q94: Annuo | S94: di Rata | Y94: MALATTIA | Z94: ASSISTENZA | AA94: MALATTIA | AB94: ASSISTENZA
C96: PREMIO NETTO | G96: =IF(c_prodotto=c_rsm,SUM(E119:S122),IF(c_prodotto=c_diaria,SUM(E144:S145),0)) -> 4321.86 | I96: =ROUND(G96/VLOOKUP(c_fraz,t_fraz,3,FALSE),2) -> 4321.86 | M96: PREMIO NETTO ANNUO | Q96: =SUM($E$136:$S$136) -> 322.86 | S96: =ROUND(Q96/VLOOKUP(c_frazextra,t_fraz,3,FALSE),2) -> 322.86 | Y96: =IF(c_prodotto=c_rsm,SUM(E119:S121),IF(c_prodotto=c_diaria,SUM(E144:S144),0)) -> 4305.33 | Z96: =IF(c_prodotto=c_rsm,SUM(E122:S122),IF(c_prodotto=c_diaria,SUM(E145:S145),0)) -> 16.53 | AA96: =ROUND(Y96*(1+VLOOKUP(c_fraz,t_fraz,2,FALSE)),2) -> 4305.33 | AB96: =ROUND(Z96*(1+VLOOKUP(c_fraz,t_fraz,2,FALSE)),2) -> 16.53
C98: ACCESSORI | G98: =IF(c_prodotto=c_rsm,SUM(E124:S127),IF(c_prodotto=c_diaria,SUM(E147:S148),0)) -> 432.18 | I98: =ROUND(G98/VLOOKUP(c_fraz,t_fraz,3,FALSE),2) -> 432.18 | M98: ACCESSORI | Q98: =SUM($E$138:$S$138) -> 32.29 | S98: =ROUND(Q98/VLOOKUP(c_frazextra,t_fraz,3,FALSE),2) -> 32.29 | Y98: =IF(c_prodotto=c_rsm,SUM(E124:S126),IF(c_prodotto=c_diaria,SUM(E147:S147),0)) -> 430.53 | Z98: =IF(c_prodotto=c_rsm,SUM(E127:S127),IF(c_prodotto=c_diaria,SUM(E148:S148),0)) -> 1.65 | AA98: =ROUND(Y98*(1+VLOOKUP(c_fraz,t_fraz,2,FALSE)),2) -> 430.53 | AB98: =ROUND(Z98*(1+VLOOKUP(c_fraz,t_fraz,2,FALSE)),2) -> 1.65
C100: DIRITTI | G100: =IF(E92="SI",MIN(ROUND(10%*(G96+G98),2),65),0) -> 0 | I100: =ROUND(G100/VLOOKUP(c_fraz,t_fraz,3,FALSE),2) -> 0 | M100: DIRITTI | Q100: =IF(O92="SI",MIN(ROUND(10%*(Q96+Q98),2),65),0) -> 0 | S100: =ROUND(Q100/VLOOKUP(c_frazextra,t_fraz,3,FALSE),2) -> 0 | AA100: =ROUND(G100*SUM(AA96:AA98)/SUM(AA96:AB98),2) -> 0 | AB100: =G100-AA100 -> 0
C102: Interessi di frazionamento | G102: =IF(c_fraz=parametri!$V$3,0,ROUND(3%*(G96+G98),2)) -> 0 | I102: =ROUND(G102/VLOOKUP(c_fraz,t_fraz,3,FALSE),2) -> 0 | M102: IMPOSTE | Q102: =SUM($E$140:$S$141) -> 8.88 | S102: =ROUND(Q102/VLOOKUP(c_frazextra,t_fraz,3,FALSE),2) -> 8.88
C104: IMPOSTE | I104: =ROUND((ROUND(SUM(AA96:AA98,AA100)*2.5%,2)+ROUND(SUM(AB96:AB98,AB100)*10%,2))/VLOOKUP(c_fraz,t_fraz,3,FALSE),2) -> 120.22
C106: PREMIO LORDO DI RATA FINITO | I106: =SUM(I96,I98,I100,I102,I104) -> 4874.26 | M106: PREMIO LORDO DI RATA FINITO | S106: =ROUND(SUM(Q96,Q98,Q100,Q102)/VLOOKUP(c_frazextra,t_fraz,3,FALSE),3) -> 364.03
B110: =TODAY() -> 2023-01-16
B111: NOTE :
C117: RIMBORSO SPESE MEDICHE
C118: NETTO | E118: Assicurato 1 | G118: Assicurato 2 | I118: Assicurato 3 | K118: Assicurato 4 | M118: Assicurato 5 | O118: Assicurato 6 | Q118: Assicurato 7 | S118: Assicurato 8
C119: rimborso spese mediche | E119: =ROUND(IF($E$8=c_rsm,ROUND(VLOOKUP(IF(ISBLANK(D$28),c_eta1,D$28),t_sl,VLOOKUP(LEFT(E$28,3)&"*",t_cv_rsm,2,FALSE),FALSE)*c_indicetot,2)*IF(E$34="SI",1-10%,1)*IF(E$36<>"NO",1-VLOOKUP(E$36,t_franchigia,2,FALSE),1)*IF(E$38="SI",1+5%,1)*IF($E$12<>"NO",1-VLOOKUP($E$10,t_nucleo,2,FALSE),1)*IF(E$40="SI",1+5%,1),0),2)*(1+E$29) -> 4305.33 | G119: =ROUND(IF(AND($E$8=c_rsm,c_eta2<>""),ROUND(VLOOKUP(IF(ISBLANK(F$28),c_eta2,F$28),t_sl,VLOOKUP(LEFT(G$28,3)&"*",t_cv_rsm,2,FALSE),FALSE)*c_indicetot,2)*IF(G$34="SI",1-10%,1)*IF(G$36<>"NO",1-VLOOKUP(G$36,t_franchigia,2,FALSE),1)*IF(G$38="SI",1+5%,1)*IF($E$12<>"NO",1-VLOOKUP($E$10,t_nucleo,2,FALSE),1)*IF(G$40="SI",1+5%,1),0),2)*(1+G$29) -> 0 | I119: =ROUND(IF(AND($E$8=c_rsm,c_eta3<>""),ROUND(VLOOKUP(IF(ISBLANK(H$28),c_eta3,H$28),t_sl,VLOOKUP(LEFT(I$28,3)&"*",t_cv_rsm,2,FALSE),FALSE)*c_indicetot,2)*IF(I$34="SI",1-10%,1)*IF(I$36<>"NO",1-VLOOKUP(I$36,t_franchigia,2,FALSE),1)*IF(I$38="SI",1+5%,1)*IF($E$12<>"NO",1-VLOOKUP($E$10,t_nucleo,2,FALSE),1)*IF(I$40="SI",1+5%,1),0),2)*(1+I$29) -> 0 | K119: =ROUND(IF(AND($E$8=c_rsm,c_eta4<>""),ROUND(VLOOKUP(IF(ISBLANK(J$28),c_eta4,J$28),t_sl,VLOOKUP(LEFT(K$28,3)&"*",t_cv_rsm,2,FALSE),FALSE)*c_indicetot,2)*IF(K$34="SI",1-10%,1)*IF(K$36<>"NO",1-VLOOKUP(K$36,t_franchigia,2,FALSE),1)*IF(K$38="SI",1+5%,1)*IF($E$12<>"NO",1-VLOOKUP($E$10,t_nucleo,2,FALSE),1)*IF(K$40="SI",1+5%,1),0),2)*(1+K$29) -> 0 | M119: =ROUND(IF(AND($E$8=c_rsm,c_eta5<>""),ROUND(VLOOKUP(IF(ISBLANK(L$28),c_eta5,L$28),t_sl,VLOOKUP(LEFT(M$28,3)&"*",t_cv_rsm,2,FALSE),FALSE)*c_indicetot,2)*IF(M$34="SI",1-10%,1)*IF(M$36<>"NO",1-VLOOKUP(M$36,t_franchigia,2,FALSE),1)*IF(M$38="SI",1+5%,1)*IF($E$12<>"NO",1-VLOOKUP($E$10,t_nucleo,2,FALSE),1)*IF(M$40="SI",1+5%,1),0),2)*(1+M$29) -> 0 | O119: =ROUND(IF(AND($E$8=c_rsm,c_eta6<>""),ROUND(VLOOKUP(IF(ISBLANK(N$28),c_eta6,N$28),t_sl,VLOOKUP(LEFT(O$28,3)&"*",t_cv_rsm,2,FALSE),FALSE)*c_indicetot,2)*IF(O$34="SI",1-10%,1)*IF(O$36<>"NO",1-VLOOKUP(O$36,t_franchigia,2,FALSE),1)*IF(O$38="SI",1+5%,1)*IF($E$12<>"NO",1-VLOOKUP($E$10,t_nucleo,2,FALSE),1)*IF(O$40="SI",1+5%,1),0),2)*(1+O$29) -> 0 | Q119: =ROUND(IF(AND($E$8=c_rsm,c_eta7<>""),ROUND(VLOOKUP(IF(ISBLANK(P$28),c_eta7,P$28),t_sl,VLOOKUP(LEFT(Q$28,3)&"*",t_cv_rsm,2,FALSE),FALSE)*c_indicetot,2)*IF(Q$34="SI",1-10%,1)*IF(Q$36<>"NO",1-VLOOKUP(Q$36,t_franchigia,2,FALSE),1)*IF(Q$38="SI",1+5%,1)*IF($E$12<>"NO",1-VLOOKUP($E$10,t_nucleo,2,FALSE),1)*IF(Q$40="SI",1+5%,1),0),2)*(1+Q$29) -> 0 | S119: =ROUND(IF(AND($E$8=c_rsm,c_eta8<>""),ROUND(VLOOKUP(IF(ISBLANK(R$28),c_eta8,R$28),t_sl,VLOOKUP(LEFT(S$28,3)&"*",t_cv_rsm,2,FALSE),FALSE)*c_indicetot,2)*IF(S$34="SI",1-10%,1)*IF(S$36<>"NO",1-VLOOKUP(S$36,t_franchigia,2,FALSE),1)*IF(S$38="SI",1+5%,1)*IF($E$12<>"NO",1-VLOOKUP($E$10,t_nucleo,2,FALSE),1)*IF(S$40="SI",1+5%,1),0),2)*(1+S$29) -> 0
C120: raddoppio prestazioni per grandi interventi | E120: =ROUND(IF(AND($E$8=c_rsm,c_gl1="SI"),ROUND(VLOOKUP(IF(ISBLANK(D$30),c_eta1,D$30),t_gl,VLOOKUP(LEFT(E$28,3)&"*",t_cv_rsm,2,FALSE),FALSE)*c_indicetot,2)*IF(E$34="SI",1-10%,1)*IF($E$12<>"NO",1-VLOOKUP($E$10,t_nucleo,2,FALSE),1),0),2)*(1+E$31) -> 0 | G120: =ROUND(IF(AND($E$8=c_rsm,c_gl2="SI",c_eta2<>""),ROUND(VLOOKUP(IF(ISBLANK(F$30),c_eta2,F$30),t_gl,VLOOKUP(LEFT(G$28,3)&"*",t_cv_rsm,2,FALSE),FALSE)*c_indicetot,2)*IF(G$34="SI",1-10%,1)*IF($E$12<>"NO",1-VLOOKUP($E$10,t_nucleo,2,FALSE),1),0),2)*(1+G$31) -> 0 | I120: =ROUND(IF(AND($E$8=c_rsm,c_gl3="SI",c_eta3<>""),ROUND(VLOOKUP(IF(ISBLANK(H$30),c_eta3,H$30),t_gl,VLOOKUP(LEFT(I$28,3)&"*",t_cv_rsm,2,FALSE),FALSE)*c_indicetot,2)*IF(I$34="SI",1-10%,1)*IF($E$12<>"NO",1-VLOOKUP($E$10,t_nucleo,2,FALSE),1),0),2)*(1+I$31) -> 0 | K120: =ROUND(IF(AND($E$8=c_rsm,c_gl4="SI",c_eta4<>""),ROUND(VLOOKUP(IF(ISBLANK(J$30),c_eta4,J$30),t_gl,VLOOKUP(LEFT(K$28,3)&"*",t_cv_rsm,2,FALSE),FALSE)*c_indicetot,2)*IF(K$34="SI",1-10%,1)*IF($E$12<>"NO",1-VLOOKUP($E$10,t_nucleo,2,FALSE),1),0),2)*(1+K$31) -> 0 | M120: =ROUND(IF(AND($E$8=c_rsm,c_gl5="SI",c_eta5<>""),ROUND(VLOOKUP(IF(ISBLANK(L$30),c_eta5,L$30),t_gl,VLOOKUP(LEFT(M$28,3)&"*",t_cv_rsm,2,FALSE),FALSE)*c_indicetot,2)*IF(M$34="SI",1-10%,1)*IF($E$12<>"NO",1-VLOOKUP($E$10,t_nucleo,2,FALSE),1),0),2)*(1+M$31) -> 0 | O120: =ROUND(IF(AND($E$8=c_rsm,c_gl6="SI",c_eta6<>""),ROUND(VLOOKUP(IF(ISBLANK(N$30),c_eta6,N$30),t_gl,VLOOKUP(LEFT(O$28,3)&"*",t_cv_rsm,2,FALSE),FALSE)*c_indicetot,2)*IF(O$34="SI",1-10%,1)*IF($E$12<>"NO",1-VLOOKUP($E$10,t_nucleo,2,FALSE),1),0),2)*(1+O$31) -> 0 | Q120: =ROUND(IF(AND($E$8=c_rsm,c_gl7="SI",c_eta7<>""),ROUND(VLOOKUP(IF(ISBLANK(P$30),c_eta7,P$30),t_gl,VLOOKUP(LEFT(Q$28,3)&"*",t_cv_rsm,2,FALSE),FALSE)*c_indicetot,2)*IF(Q$34="SI",1-10%,1)*IF($E$12<>"NO",1-VLOOKUP($E$10,t_nucleo,2,FALSE),1),0),2)*(1+Q$31) -> 0 | S120: =ROUND(IF(AND($E$8=c_rsm,c_gl8="SI",c_eta8<>""),ROUND(VLOOKUP(IF(ISBLANK(R$30),c_eta8,R$30),t_gl,VLOOKUP(LEFT(S$28,3)&"*",t_cv_rsm,2,FALSE),FALSE)*c_indicetot,2)*IF(S$34="SI",1-10%,1)*IF($E$12<>"NO",1-VLOOKUP($E$10,t_nucleo,2,FALSE),1),0),2)*(1+S$31) -> 0
C121: prestazione integrativa per interventi chirurgici | E121: =ROUND(IF(AND($E$8=c_rsm,E$32<>"NO"),ROUND(VLOOKUP(IF(ISBLANK(D$32),c_eta1,D$32),t_ol,VLOOKUP(LEFT(E$32,9)&"*",parametri!$K$3:$L$5,2,FALSE),FALSE)*c_indicetot,2)*IF(E$34="SI",1-10%,1)*IF($E$12<>"NO",1-VLOOKUP($E$10,t_nucleo,2,FALSE),1),0),2)*(1+E$33) -> 0 | G121: =ROUND(IF(AND($E$8=c_rsm,G$32<>"NO",c_eta2<>""),ROUND(VLOOKUP(IF(ISBLANK(F$32),c_eta2,F$32),t_ol,VLOOKUP(LEFT(G$32,9)&"*",parametri!$K$3:$L$5,2,FALSE),FALSE)*c_indicetot,2)*IF(G$34="SI",1-10%,1)*IF($E$12<>"NO",1-VLOOKUP($E$10,t_nucleo,2,FALSE),1),0),2)*(1+G$33) -> 0 | I121: =ROUND(IF(AND($E$8=c_rsm,I$32<>"NO",c_eta3<>""),ROUND(VLOOKUP(IF(ISBLANK(H$32),c_eta3,H$32),t_ol,VLOOKUP(LEFT(I$32,9)&"*",parametri!$K$3:$L$5,2,FALSE),FALSE)*c_indicetot,2)*IF(I$34="SI",1-10%,1)*IF($E$12<>"NO",1-VLOOKUP($E$10,t_nucleo,2,FALSE),1),0),2)*(1+I$33) -> 0 | K121: =ROUND(IF(AND($E$8=c_rsm,K$32<>"NO",c_eta4<>""),ROUND(VLOOKUP(IF(ISBLANK(J$32),c_eta4,J$32),t_ol,VLOOKUP(LEFT(K$32,9)&"*",parametri!$K$3:$L$5,2,FALSE),FALSE)*c_indicetot,2)*IF(K$34="SI",1-10%,1)*IF($E$12<>"NO",1-VLOOKUP($E$10,t_nucleo,2,FALSE),1),0),2)*(1+K$33) -> 0 | M121: =ROUND(IF(AND($E$8=c_rsm,M$32<>"NO",c_eta5<>""),ROUND(VLOOKUP(IF(ISBLANK(L$32),c_eta5,L$32),t_ol,VLOOKUP(LEFT(M$32,9)&"*",parametri!$K$3:$L$5,2,FALSE),FALSE)*c_indicetot,2)*IF(M$34="SI",1-10%,1)*IF($E$12<>"NO",1-VLOOKUP($E$10,t_nucleo,2,FALSE),1),0),2)*(1+M$33) -> 0 | O121: =ROUND(IF(AND($E$8=c_rsm,O$32<>"NO",c_eta6<>""),ROUND(VLOOKUP(IF(ISBLANK(N$32),c_eta6,N$32),t_ol,VLOOKUP(LEFT(O$32,9)&"*",parametri!$K$3:$L$5,2,FALSE),FALSE)*c_indicetot,2)*IF(O$34="SI",1-10%,1)*IF($E$12<>"NO",1-VLOOKUP($E$10,t_nucleo,2,FALSE),1),0),2)*(1+O$33) -> 0 | Q121: =ROUND(IF(AND($E$8=c_rsm,Q$32<>"NO",c_eta7<>""),ROUND(VLOOKUP(IF(ISBLANK(P$32),c_eta7,P$32),t_ol,VLOOKUP(LEFT(Q$32,9)&"*",parametri!$K$3:$L$5,2,FALSE),FALSE)*c_indicetot,2)*IF(Q$34="SI",1-10%,1)*IF($E$12<>"NO",1-VLOOKUP($E$10,t_nucleo,2,FALSE),1),0),2)*(1+Q$33) -> 0 | S121: =ROUND(IF(AND($E$8=c_rsm,S$32<>"NO",c_eta8<>""),ROUND(VLOOKUP(IF(ISBLANK(R$32),c_eta8,R$32),t_ol,VLOOKUP(LEFT(S$32,9)&"*",parametri!$K$3:$L$5,2,FALSE),FALSE)*c_indicetot,2)*IF(S$34="SI",1-10%,1)*IF($E$12<>"NO",1-VLOOKUP($E$10,t_nucleo,2,FALSE),1),0),2)*(1+S$33) -> 0
C122: assistenza | E122: =IF($E$8=c_rsm,c_ass_rsm,0) -> 16.53 | G122: =IF(AND($E$8=c_rsm,c_eta2<>""),c_ass_rsm,0) -> 0 | I122: =IF(AND($E$8=c_rsm,c_eta3<>""),c_ass_rsm,0) -> 0 | K122: =IF(AND($E$8=c_rsm,c_eta4<>""),c_ass_rsm,0) -> 0 | M122: =IF(AND($E$8=c_rsm,c_eta5<>""),c_ass_rsm,0) -> 0 | O122: =IF(AND($E$8=c_rsm,c_eta6<>""),c_ass_rsm,0) -> 0 | Q122: =IF(AND($E$8=c_rsm,c_eta7<>""),c_ass_rsm,0) -> 0 | S122: =IF(AND($E$8=c_rsm,c_eta8<>""),c_ass_rsm,0) -> 0
C123: accessori
C124: rimborso spese mediche | E124: =ROUND(E119*10%,2) -> 430.53 | G124: =ROUND(G119*10%,2) -> 0 | I124: =ROUND(I119*10%,2) -> 0 | K124: =ROUND(K119*10%,2) -> 0 | M124: =ROUND(M119*10%,2) -> 0 | O124: =ROUND(O119*10%,2) -> 0 | Q124: =ROUND(Q119*10%,2) -> 0 | S124: =ROUND(S119*10%,2) -> 0
C125: raddoppio prestazioni per grandi interventi | E125: =ROUND(E120*10%,2) -> 0 | G125: =ROUND(G120*10%,2) -> 0 | I125: =ROUND(I120*10%,2) -> 0 | K125: =ROUND(K120*10%,2) -> 0 | M125: =ROUND(M120*10%,2) -> 0 | O125: =ROUND(O120*10%,2) -> 0 | Q125: =ROUND(Q120*10%,2) -> 0 | S125: =ROUND(S120*10%,2) -> 0
C126: prestazione integrativa per interventi chirurgici | E126: =ROUND(E121*10%,2) -> 0 | G126: =ROUND(G121*10%,2) -> 0 | I126: =ROUND(I121*10%,2) -> 0 | K126: =ROUND(K121*10%,2) -> 0 | M126: =ROUND(M121*10%,2) -> 0 | O126: =ROUND(O121*10%,2) -> 0 | Q126: =ROUND(Q121*10%,2) -> 0 | S126: =ROUND(S121*10%,2) -> 0
C127: assistenza | E127: =ROUND(E122*10%,2) -> 1.65 | G127: =ROUND(G122*10%,2) -> 0 | I127: =ROUND(I122*10%,2) -> 0 | K127: =ROUND(K122*10%,2) -> 0 | M127: =ROUND(M122*10%,2) -> 0 | O127: =ROUND(O122*10%,2) -> 0 | Q127: =ROUND(Q122*10%,2) -> 0 | S127: =ROUND(S122*10%,2) -> 0
C128: imposte
C129: rimborso spese mediche | E129: =ROUND(SUM(E119+E124)*2.5%,2) -> 118.4 | G129: =ROUND(SUM(G119+G124)*2.5%,2) -> 0 | I129: =ROUND(SUM(I119+I124)*2.5%,2) -> 0 | K129: =ROUND(SUM(K119+K124)*2.5%,2) -> 0 | M129: =ROUND(SUM(M119+M124)*2.5%,2) -> 0 | O129: =ROUND(SUM(O119+O124)*2.5%,2) -> 0 | Q129: =ROUND(SUM(Q119+Q124)*2.5%,2) -> 0 | S129: =ROUND(SUM(S119+S124)*2.5%,2) -> 0
C130: raddoppio prestazioni per grandi interventi | E130: =ROUND(SUM(E120+E125)*2.5%,2) -> 0 | G130: =ROUND(SUM(G120+G125)*2.5%,2) -> 0 | I130: =ROUND(SUM(I120+I125)*2.5%,2) -> 0 | K130: =ROUND(SUM(K120+K125)*2.5%,2) -> 0 | M130: =ROUND(SUM(M120+M125)*2.5%,2) -> 0 | O130: =ROUND(SUM(O120+O125)*2.5%,2) -> 0 | Q130: =ROUND(SUM(Q120+Q125)*2.5%,2) -> 0 | S130: =ROUND(SUM(S120+S125)*2.5%,2) -> 0
C131: prestazione integrativa per interventi chirurgici | E131: =ROUND(SUM(E121+E126)*2.5%,2) -> 0 | G131: =ROUND(SUM(G121+G126)*2.5%,2) -> 0 | I131: =ROUND(SUM(I121+I126)*2.5%,2) -> 0 | K131: =ROUND(SUM(K121+K126)*2.5%,2) -> 0 | M131: =ROUND(SUM(M121+M126)*2.5%,2) -> 0 | O131: =ROUND(SUM(O121+O126)*2.5%,2) -> 0 | Q131: =ROUND(SUM(Q121+Q126)*2.5%,2) -> 0 | S131: =ROUND(SUM(S121+S126)*2.5%,2) -> 0
C132: assistenza | E132: =ROUND(SUM(E122+E127)*10%,2) -> 1.82 | G132: =ROUND(SUM(G122+G127)*10%,2) -> 0 | I132: =ROUND(SUM(I122+I127)*10%,2) -> 0 | K132: =ROUND(SUM(K122+K127)*10%,2) -> 0 | M132: =ROUND(SUM(M122+M127)*10%,2) -> 0 | O132: =ROUND(SUM(O122+O127)*10%,2) -> 0 | Q132: =ROUND(SUM(Q122+Q127)*10%,2) -> 0 | S132: =ROUND(SUM(S122+S127)*10%,2) -> 0
C133: diritti | E133: =ROUND(SUM(E119:S121,E124:S126)/SUM(E119:S122,E124:S127)*G100*2.5%,2)+ROUND(SUM(E122:S122,E127:S127)/SUM(E119:S122,E124:S127)*G100*10%,2) -> 0
C134: SOLUZIONE EXTRARICOVERO | E134: =IF(OR(E$56="Comfort",E$56="Deluxe"),1,0) -> 1 | G134: =IF(OR(G$56="Comfort",G$56="Deluxe"),1,0) -> 0 | I134: =IF(OR(I$56="Comfort",I$56="Deluxe"),1,0) -> 0 | K134: =IF(OR(K$56="Comfort",K$56="Deluxe"),1,0) -> 0 | M134: =IF(OR(M$56="Comfort",M$56="Deluxe"),1,0) -> 0 | O134: =IF(OR(O$56="Comfort",O$56="Deluxe"),1,0) -> 0 | Q134: =IF(OR(Q$56="Comfort",Q$56="Deluxe"),1,0) -> 0 | S134: =IF(OR(S$56="Comfort",S$56="Deluxe"),1,0) -> 0 | T134: =SUM(E134:S134) -> 1
C135: netto | E135: Assicurato 1 | G135: Assicurato 2 | I135: Assicurato 3 | K135: Assicurato 4 | M135: Assicurato 5 | O135: Assicurato 6 | Q135: Assicurato 7 | S135: Assicurato 8
C136: visite specialistiche e accertamenti diagnostici | E136: =ROUND(IF(AND($E$8=c_rsm,E$56<>"NO"),ROUND(VLOOKUP(c_eta1,t_extra,VLOOKUP(E$56,t_cv_extra,2,FALSE),FALSE)*c_indicetot_extra,2)*IF(E$57="SI",1-17%,1),0),2)*IF($E$12<>"NO",1-VLOOKUP($E$10,t_nucleo,2,FALSE),1) -> 322.86 | G136: =ROUND(IF(AND($E$8=c_rsm,c_eta2<>"",G$56<>"NO"),ROUND(VLOOKUP(c_eta2,t_extra,VLOOKUP(G$56,t_cv_extra,2,FALSE),FALSE)*c_indicetot_extra,2) *IF(G$57="SI",1-17%,1),0),2)*IF($E$12<>"NO",1-VLOOKUP($E$10,t_nucleo,2,FALSE),1) -> 0 | I136: =ROUND(IF(AND($E$8=c_rsm,c_eta3<>"",I$56<>"NO"),ROUND(VLOOKUP(c_eta3,t_extra,VLOOKUP(I$56,t_cv_extra,2,FALSE),FALSE)*c_indicetot_extra,2) *IF(I$57="SI",1-17%,1),0),2)*IF($E$12<>"NO",1-VLOOKUP($E$10,t_nucleo,2,FALSE),1) -> 0 | K136: =ROUND(IF(AND($E$8=c_rsm,c_eta4<>"",K$56<>"NO"),ROUND(VLOOKUP(c_eta4,t_extra,VLOOKUP(K$56,t_cv_extra,2,FALSE),FALSE)*c_indicetot_extra,2) *IF(K$57="SI",1-17%,1),0),2)*IF($E$12<>"NO",1-VLOOKUP($E$10,t_nucleo,2,FALSE),1) -> 0 | M136: =ROUND(IF(AND($E$8=c_rsm,c_eta5<>"",M$56<>"NO"),ROUND(VLOOKUP(c_eta5,t_extra,VLOOKUP(M$56,t_cv_extra,2,FALSE),FALSE)*c_indicetot_extra,2) *IF(M$57="SI",1-17%,1),0),2)*IF($E$12<>"NO",1-VLOOKUP($E$10,t_nucleo,2,FALSE),1) -> 0 | O136: =ROUND(IF(AND($E$8=c_rsm,c_eta6<>"",O$56<>"NO"),ROUND(VLOOKUP(c_eta6,t_extra,VLOOKUP(O$56,t_cv_extra,2,FALSE),FALSE)*c_indicetot_extra,2) *IF(O$57="SI",1-17%,1),0),2)*IF($E$12<>"NO",1-VLOOKUP($E$10,t_nucleo,2,FALSE),1) -> 0 | Q136: =ROUND(IF(AND($E$8=c_rsm,c_eta7<>"",Q$56<>"NO"),ROUND(VLOOKUP(c_eta7,t_extra,VLOOKUP(Q$56,t_cv_extra,2,FALSE),FALSE)*c_indicetot_extra,2) *IF(Q$57="SI",1-17%,1),0),2)*IF($E$12<>"NO",1-VLOOKUP($E$10,t_nucleo,2,FALSE),1) -> 0 | S136: =ROUND(IF(AND($E$8=c_rsm,c_eta8<>"",S$56<>"NO"),ROUND(VLOOKUP(c_eta8,t_extra,VLOOKUP(S$56,t_cv_extra,2,FALSE),FALSE)*c_indicetot_extra,2) *IF(S$57="SI",1-17%,1),0),2)*IF($E$12<>"NO",1-VLOOKUP($E$10,t_nucleo,2,FALSE),1) -> 0
C137: accessori
C138: visite specialistiche e accertamenti diagnostici | E138: =ROUND(E136*10%,2) -> 32.29 | G138: =ROUND(G136*10%,2) -> 0 | I138: =ROUND(I136*10%,2) -> 0 | K138: =ROUND(K136*10%,2) -> 0 | M138: =ROUND(M136*10%,2) -> 0 | O138: =ROUND(O136*10%,2) -> 0 | Q138: =ROUND(Q136*10%,2) -> 0 | S138: =ROUND(S136*10%,2) -> 0
C139: imposte
C140: visite specialistiche e accertamenti diagnostici | E140: =ROUND(SUM(E136+E138)*2.5%,2) -> 8.88 | G140: =ROUND(SUM(G136+G138)*2.5%,2) -> 0 | I140: =ROUND(SUM(I136+I138)*2.5%,2) -> 0 | K140: =ROUND(SUM(K136+K138)*2.5%,2) -> 0 | M140: =ROUND(SUM(M136+M138)*2.5%,2) -> 0 | O140: =ROUND(SUM(O136+O138)*2.5%,2) -> 0 | Q140: =ROUND(SUM(Q136+Q138)*2.5%,2) -> 0 | S140: =ROUND(SUM(S136+S138)*2.5%,2) -> 0
C141: diritti
C142: DIARIA
C143: netto | E143: Assicurato 1 | G143: Assicurato 2 | I143: Assicurato 3 | K143: Assicurato 4 | M143: Assicurato 5 | O143: Assicurato 6 | Q143: Assicurato 7 | S143: Assicurato 8
C144: diaria | E144: =ROUND(IF($E$8=c_diaria,VLOOKUP(c_eta1,IF(E$68=c_standard,t_dsu,t_tpu),VLOOKUP(E$70,t_cv_diaria,2,FALSE),FALSE)*IF(E$72="SI",1+5%,1)*IF($E$12<>"NO",1-VLOOKUP($E$10,t_nucleo,2,FALSE),1)*IF(AND(E$68=c_standard,E$74="SI"),1+30%,1)*IF(AND(E$68=c_standard,E$76="SI"),1+10%,1),0),2) -> 0 | G144: =ROUND(IF(AND($E$8=c_diaria,c_eta2<>""),VLOOKUP(c_eta2,IF(G$68=c_standard,t_dsu,t_tpu),VLOOKUP(G$70,t_cv_diaria,2,FALSE),FALSE)*IF(G$72="SI",1+5%,1)*IF($E$12<>"NO",1-VLOOKUP($E$10,t_nucleo,2,FALSE),1)*IF(AND(G$68=c_standard,G$74="SI"),1+30%,1)*IF(AND(G$68=c_standard,G$76="SI"),1+10%,1),0),2) -> 0 | I144: =ROUND(IF(AND($E$8=c_diaria,c_eta3<>""),VLOOKUP(c_eta3,IF(I$68=c_standard,t_dsu,t_tpu),VLOOKUP(I$70,t_cv_diaria,2,FALSE),FALSE)*IF(I$72="SI",1+5%,1)*IF($E$12<>"NO",1-VLOOKUP($E$10,t_nucleo,2,FALSE),1)*IF(AND(I$68=c_standard,I$74="SI"),1+30%,1)*IF(AND(I$68=c_standard,I$76="SI"),1+10%,1),0),2) -> 0 | K144: =ROUND(IF(AND($E$8=c_diaria,c_eta4<>""),VLOOKUP(c_eta4,IF(K$68=c_standard,t_dsu,t_tpu),VLOOKUP(K$70,t_cv_diaria,2,FALSE),FALSE)*IF(K$72="SI",1+5%,1)*IF($E$12<>"NO",1-VLOOKUP($E$10,t_nucleo,2,FALSE),1)*IF(AND(K$68=c_standard,K$74="SI"),1+30%,1)*IF(AND(K$68=c_standard,K$76="SI"),1+10%,1),0),2) -> 0 | M144: =ROUND(IF(AND($E$8=c_diaria,c_eta5<>""),VLOOKUP(c_eta5,IF(M$68=c_standard,t_dsu,t_tpu),VLOOKUP(M$70,t_cv_diaria,2,FALSE),FALSE)*IF(M$72="SI",1+5%,1)*IF($E$12<>"NO",1-VLOOKUP($E$10,t_nucleo,2,FALSE),1)*IF(AND(M$68=c_standard,M$74="SI"),1+30%,1)*IF(AND(M$68=c_standard,M$76="SI"),1+10%,1),0),2) -> 0 | O144: =ROUND(IF(AND($E$8=c_diaria,c_eta6<>""),VLOOKUP(c_eta6,IF(O$68=c_standard,t_dsu,t_tpu),VLOOKUP(O$70,t_cv_diaria,2,FALSE),FALSE)*IF(O$72="SI",1+5%,1)*IF($E$12<>"NO",1-VLOOKUP($E$10,t_nucleo,2,FALSE),1)*IF(AND(O$68=c_standard,O$74="SI"),1+30%,1)*IF(AND(O$68=c_standard,O$76="SI"),1+10%,1),0),2) -> 0 | Q144: =ROUND(IF(AND($E$8=c_diaria,c_eta7<>""),VLOOKUP(c_eta7,IF(Q$68=c_standard,t_dsu,t_tpu),VLOOKUP(Q$70,t_cv_diaria,2,FALSE),FALSE)*IF(Q$72="SI",1+5%,1)*IF($E$12<>"NO",1-VLOOKUP($E$10,t_nucleo,2,FALSE),1)*IF(AND(Q$68=c_standard,Q$74="SI"),1+30%,1)*IF(AND(Q$68=c_standard,Q$76="SI"),1+10%,1),0),2) -> 0 | S144: =ROUND(IF(AND($E$8=c_diaria,c_eta8<>""),VLOOKUP(c_eta8,IF(S$68=c_standard,t_dsu,t_tpu),VLOOKUP(S$70,t_cv_diaria,2,FALSE),FALSE)*IF(S$72="SI",1+5%,1)*IF($E$12<>"NO",1-VLOOKUP($E$10,t_nucleo,2,FALSE),1)*IF(AND(S$68=c_standard,S$74="SI"),1+30%,1)*IF(AND(S$68=c_standard,S$76="SI"),1+10%,1),0),2) -> 0
C145: assistenza | E145: =IF(AND($E$8=c_diaria,E$84="SI"),c_ass_diaria,0) -> 0 | G145: =IF(AND($E$8=c_diaria,G$84="SI",G20<>""),c_ass_diaria,0) -> 0 | I145: =IF(AND($E$8=c_diaria,I$84="SI",I20<>""),c_ass_diaria,0) -> 0 | K145: =IF(AND($E$8=c_diaria,K$84="SI",K20<>""),c_ass_diaria,0) -> 0 | M145: =IF(AND($E$8=c_diaria,M$84="SI",M20<>""),c_ass_diaria,0) -> 0 | O145: =IF(AND($E$8=c_diaria,O$84="SI",O20<>""),c_ass_diaria,0) -> 0 | Q145: =IF(AND($E$8=c_diaria,Q$84="SI",Q20<>""),c_ass_diaria,0) -> 0 | S145: =IF(AND($E$8=c_diaria,S$84="SI",S20<>""),c_ass_diaria,0) -> 0
C146: accessori
C147: diaria | E147: =ROUND(E144*10%,2) -> 0 | G147: =ROUND(G144*10%,2) -> 0 | I147: =ROUND(I144*10%,2) -> 0 | K147: =ROUND(K144*10%,2) -> 0 | M147: =ROUND(M144*10%,2) -> 0 | O147: =ROUND(O144*10%,2) -> 0 | Q147: =ROUND(Q144*10%,2) -> 0 | S147: =ROUND(S144*10%,2) -> 0
C148: assistenza | E148: =ROUND(E145*10%,2) -> 0 | G148: =ROUND(G145*10%,2) -> 0 | I148: =ROUND(I145*10%,2) -> 0 | K148: =ROUND(K145*10%,2) -> 0 | M148: =ROUND(M145*10%,2) -> 0 | O148: =ROUND(O145*10%,2) -> 0 | Q148: =ROUND(Q145*10%,2) -> 0 | S148: =ROUND(S145*10%,2) -> 0
C149: imposte
C150: diaria | E150: =ROUND(SUM(E144+E147)*2.5%,2) -> 0 | G150: =ROUND(SUM(G144+G147)*2.5%,2) -> 0 | I150: =ROUND(SUM(I144+I147)*2.5%,2) -> 0 | K150: =ROUND(SUM(K144+K147)*2.5%,2) -> 0 | M150: =ROUND(SUM(M144+M147)*2.5%,2) -> 0 | O150: =ROUND(SUM(O144+O147)*2.5%,2) -> 0 | Q150: =ROUND(SUM(Q144+Q147)*2.5%,2) -> 0 | S150: =ROUND(SUM(S144+S147)*2.5%,2) -> 0
C151: assistenza | E151: =ROUND(SUM(E145+E148)*10%,2) -> 0 | G151: =ROUND(SUM(G145+G148)*10%,2) -> 0 | I151: =ROUND(SUM(I145+I148)*10%,2) -> 0 | K151: =ROUND(SUM(K145+K148)*10%,2) -> 0 | M151: =ROUND(SUM(M145+M148)*10%,2) -> 0 | O151: =ROUND(SUM(O145+O148)*10%,2) -> 0 | Q151: =ROUND(SUM(Q145+Q148)*10%,2) -> 0 | S151: =ROUND(SUM(S145+S148)*10%,2) -> 0
C152: diritti | E152: =ROUND(SUM(E144:S144,E147:S147)/SUM(E144:S145,E147:S148)*$G$100*2.5%,2)+ROUND(SUM(E145:S145,E148:S148)/SUM(E144:S145,E147:S148)*$G$100*10%,2) -> 

Sheet EXTRA (hidden)
B2: PREMI DELLA GARANZIA EXTRA-RICOVERO IN ABBINAMENTO AL PRODOTTO VITA INTERA
B3: Le condizioni della garanzia sono le stesse del prodotto RealmenteInSalute ad eccezione della componente di Alta Diagnostica che è già compresa nella tariffa SL. Su RealmenteInSalute formula FULL, il peso del premio AD sulla garanzia Accertamenti Diagnostici e Visite Specialistiche è pari al 36%. Tuttavia il premio è stato ridotto solo del 20% come da calcolo di premio puro.
B7: Annuali | C7: OPZIONE COMFORT | D7: OPZIONE DELUXE
B8: età | C8: PREMI NETTI
B9: 0 | C9: 42.72 | D9: 167.28
B10: 1 | C10: 46.49 | D10: 168.91
B11: 2 | C11: 50.27 | D11: 170.56
B12: 3 | C12: 54.05 | D12: 172.2
B13: 4 | C13: 57.83 | D13: 173.84
B14: 5 | C14: 61.61 | D14: 175.48
B15: 6 | C15: 65.39 | D15: 177.13
B16: 7 | C16: 69.17 | D16: 178.76
B17: 8 | C17: 72.95 | D17: 180.4
B18: 9 | C18: 76.74 | D18: 182.05
B19: 10 | C19: 80.51 | D19: 183.69
B20: 11 | C20: 84.28 | D20: 185.32
B21: 12 | C21: 88.07 | D21: 187.56
B22: 13 | C22: 91.85 | D22: 190.37
B23: 14 | C23: 95.63 | D23: 193.19
B24: 15 | C24: 99.41 | D24: 196.01
B25: 16 | C25: 103.19 | D25: 198.81
B26: 17 | C26: 106.96 | D26: 201.63
B27: 18 | C27: 110.74 | D27: 204.45
B28: 19 | C28: 114.52 | D28: 207.26
B29: 20 | C29: 118.3 | D29: 210.07
B30: 21 | C30: 122.09 | D30: 212.89
B31: 22 | C31: 125.86 | D31: 215.71
B32: 23 | C32: 129.64 | D32: 218.52
B33: 24 | C33: 133.43 | D33: 221.34
B34: 25 | C34: 137.2 | D34: 224.15
B35: 26 | C35: 140.98 | D35: 226.97
B36: 27 | C36: 144.76 | D36: 229.79
B37: 28 | C37: 148.54 | D37: 232.59
B38: 29 | C38: 152.32 | D38: 235.41
B39: 30 | C39: 156.1 | D39: 238.23
B40: 31 | C40: 159.88 | D40: 241.04
B41: 32 | C41: 163.65 | D41: 243.86
B42: 33 | C42: 167.44 | D42: 246.67
B43: 34 | C43: 171.21 | D43: 249.49
B44: 35 | C44: 174.99 | D44: 252.31
B45: 36 | C45: 178.78 | D45: 255.12
B46: 37 | C46: 182.55 | D46: 257.93
B47: 38 | C47: 186.33 | D47: 260.76
B48: 39 | C48: 190.11 | D48: 263.57
B49: 40 | C49: 193.89 | D49: 266.38
B50: 41 | C50: 194.25 | D50: 269.21
B51: 42 | C51: 195.16 | D51: 272.01
B52: 43 | C52: 196.61 | D52: 274.82
B53: 44 | C53: 198.61 | D53: 277.65
B54: 45 | C54: 201.15 | D54: 278.84
B55: 46 | C55: 204.25 | D55: 280.89
B56: 47 | C56: 207.88 | D56: 283.79
B57: 48 | C57: 212.07 | D57: 287.55
B58: 49 | C58: 216.81 | D58: 292.16
B59: 50 | C59: 222.08 | D59: 297.63
B60: 51 | C60: 227.91 | D60: 303.95
B61: 52 | C61: 234.29 | D61: 311.13
B62: 53 | C62: 241.2 | D62: 319.16
B63: 54 | C63: 248.67 | D63: 328.04
B64: 55 | C64: 256.68 | D64: 337.78
B65: 56 | C65: 265.24 | D65: 348.38
B66: 57 | C66: 274.35 | D66: 359.83
B67: 58 | C67: 284 | D67: 372.12
B68: 59 | C68: 294.2 | D68: 385.28
B69: 60 | C69: 304.95 | D69: 399.29
B70: 61 | C70: 316.24 | D70: 414.16
B71: 62 | C71: 328.09 | D71: 429.87
B72: 63 | C72: 340.47 | D72: 446.45
B73: 64 | C73: 353.41 | D73: 463.88
B74: 65 | C74: 366.88 | D74: 482.16
B75: 66 | C75: 380.9 | D75: 501.29
B76: 67 | C76: 395.49 | D76: 521.28
B77: 68 | C77: 410.6 | D77: 542.13
B78: 69 | C78: 426.28 | D78: 563.83
B79: 70 | C79: 442.49 | D79: 586.38
B80: 71 | C80: 459.25 | D80: 609.79
B81: 72 | C81: 476.55 | D81: 634.05
B82: 73 | C82: 494.41 | D82: 659.17
B83: 74 | C83: 512.81 | D83: 685.14
B84: 75 | C84: 531.76 | D84: 711.96

Sheet parametri (hidden)
A2: e_prodotto | C2: e_rsm | D2: colonna cerca vert | F2: e_franchigia | G2: sconto | I2: e_sn | K2: e_ol | L2: colonna cerca vert | N2: teste | Q2: e_diaria | S2: e_taglio | T2: colonna cerca vert | V2: e_fraz | W2: Svp | X2: rate | Z2: e_extra | AA2: colonna cerca vert | AC2: TIPO MOVIMENTO | AF2: e_rsm_2019 | AG2: e_rsm_2020 | AH2: e_rsm_2021 | AI2: e_rsm_2022 | AN2: e_ol_2019 | AO2: e_ol_2020 | AP2: e_ol_2021 | AQ2: e_ol_2022
A3: Rimborso spese mediche | C3: BASIC | D3: 2 | F3: NO | I3: SI | K3: NO | L3: 1 | N3: 1 | O3: 0 | Q3: Standard | S3: 025 | T3: 2 | V3: Annuale | W3: 0 | X3: 1 | Z3: NO | AA3: 1 | AC3: Emissione | AF3: ="BASIC voce 1: "&AF12& " voce 2: "&TEXT(AF13,"#.###")& " voce 3: "&TEXT(AF14,"#.###") -> BASIC voce 1: 330 voce 2: 33.000 voce 3: 3.300 | AG3: ="BASIC voce 1: "&AG12& " voce 2: "&TEXT(AG13,"#.###")& " voce 3: "&TEXT(AG14,"#.###") -> BASIC voce 1: 338 voce 2: 33.825 voce 3: 3.382 | AH3: ="BASIC voce 1: "&AH12& " voce 2: "&TEXT(AH13,"#.###")& " voce 3: "&TEXT(AH14,"#.###") -> BASIC voce 1: 346 voce 2: 34.671 voce 3: 3.467 | AI3: ="BASIC voce 1: "&AI12& " voce 2: "&TEXT(AI13,"#.###")& " voce 3: "&TEXT(AI14,"#.###") -> BASIC voce 1: 355 voce 2: 35.538 voce 3: 3.553 | AN3: NO | AO3: NO | AP3: NO | AQ3: NO
A4: Diaria | C4: NORMAL | D4: 3 | F4: 1500 | G4: 0.15 | I4: NO | K4: Opzione 1 | L4: 2 | N4: 2 | O4: 0.05 | Q4: Top | S4: 050 | T4: 3 | V4: Semestrale | W4: 0.03 | X4: 2 | Z4: Comfort | AA4: 2 | AC4: Quietanza | AF4: ="NORMAL voce 1: "&AF15& " voce 2: "&TEXT(AF16,"#.###")& " voce 3: "&TEXT(AF17,"#.###") -> NORMAL voce 1: 550 voce 2: 55.000 voce 3: 5.500 | AG4: ="NORMAL voce 1: "&AG15& " voce 2: "&TEXT(AG16,"#.###")& " voce 3: "&TEXT(AG17,"#.###") -> NORMAL voce 1: 563 voce 2: 56.375 voce 3: 5.637 | AH4: ="NORMAL voce 1: "&AH15& " voce 2: "&TEXT(AH16,"#.###")& " voce 3: "&TEXT(AH17,"#.###") -> NORMAL voce 1: 577 voce 2: 57.784 voce 3: 5.778 | AI4: ="NORMAL voce 1: "&AI15& " voce 2: "&TEXT(AI16,"#.###")& " voce 3: "&TEXT(AI17,"#.###") -> NORMAL voce 1: 592 voce 2: 59.229 voce 3: 5.922 | AN4: ="Opzione 1 - "&TEXT(AN11,"#.###") -> Opzione 1 - 12.300 | AO4: ="Opzione 1 - "&TEXT(AO11,"#.###") -> Opzione 1 - 12.300 | AP4: Opzione 1 - 12.608 | AQ4: Opzione 1 - 12.923
C5: SILVER | D5: 4 | F5: 2500 | G5: 0.2 | K5: Opzione 2 | L5: 3 | N5: 3 | O5: 0.1 | S5: 075 | T5: 4 | V5: Quadrimestrale | W5: 0.03 | X5: 3 | Z5: Deluxe | AA5: 3 | AF5: ="SILVER voce 1: "&AF18& " voce 2: "&TEXT(AF19,"#.###")& " voce 3: "&TEXT(AF20,"#.###") -> SILVER voce 1: 660 voce 2: 66.000 voce 3: 6.600 | AG5: ="SILVER voce 1: "&AG18& " voce 2: "&TEXT(AG19,"#.###")& " voce 3: "&TEXT(AG20,"#.###") -> SILVER voce 1: 676 voce 2: 67.650 voce 3: 6.765 | AH5: ="SILVER voce 1: "&AH18& " voce 2: "&TEXT(AH19,"#.###")& " voce 3: "&TEXT(AH20,"#.###") -> SILVER voce 1: 693 voce 2: 69.341 voce 3: 6.934 | AI5: ="SILVER voce 1: "&AI18& " voce 2: "&TEXT(AI19,"#.###")& " voce 3: "&TEXT(AI20,"#.###") -> SILVER voce 1: 710 voce 2: 71.075 voce 3: 7.107 | AN5: ="Opzione 2 - "&TEXT(AN12,"#.###") -> Opzione 2 - 24.600 | AO5: ="Opzione 2 - "&TEXT(AO12,"#.###") -> Opzione 2 - 24.600 | AP5: Opzione 2 - 25.215 | AQ5: Opzione 2 - 25.845
C6: GOLD | D6: 5 | F6: 3500 | G6: 0.3 | N6: 4 | O6: 0.15 | S6: 100 | T6: 5 | V6: Trimestrale | W6: 0.03 | X6: 4 | AF6: ="GOLD voce 1: "&AF21& " voce 2: "&TEXT(AF22,"#.###")& " voce 3: "&TEXT(AF23,"#.###") -> GOLD voce 1: 770 voce 2: 77.000 voce 3: 7.700 | AG6: ="GOLD voce 1: "&AG21& " voce 2: "&TEXT(AG22,"#.###")& " voce 3: "&TEXT(AG23,"#.###") -> GOLD voce 1: 789 voce 2: 78.925 voce 3: 7.892 | AH6: ="GOLD voce 1: "&AH21& " voce 2: "&TEXT(AH22,"#.###")& " voce 3: "&TEXT(AH23,"#.###") -> GOLD voce 1: 808 voce 2: 80.898 voce 3: 8.089 | AI6: ="GOLD voce 1: "&AI21& " voce 2: "&TEXT(AI22,"#.###")& " voce 3: "&TEXT(AI23,"#.###") -> GOLD voce 1: 829 voce 2: 82.920 voce 3: 8.292
C7: PLATINUM | D7: 6 | F7: 5000 | G7: 0.4 | I7: compresa nella garanzia | N7: 5 | O7: 0.15 | S7: 125 | T7: 6 | V7: Mensile | W7: 0.03 | X7: 12 | AF7: ="PLATINUM voce 1: "&AF24& " voce 2: "&TEXT(AF25,"#.###")& " voce 3: "&TEXT(AF26,"#.###") -> PLATINUM voce 1: 880 voce 2: 88.000 voce 3: 8.800 | AG7: ="PLATINUM voce 1: "&AG24& " voce 2: "&TEXT(AG25,"#.###")& " voce 3: "&TEXT(AG26,"#.###") -> PLATINUM voce 1: 902 voce 2: 90.200 voce 3: 9.020 | AH7: ="PLATINUM voce 1: "&AH24& " voce 2: "&TEXT(AH25,"#.###")& " voce 3: "&TEXT(AH26,"#.###") -> PLATINUM voce 1: 924 voce 2: 92.455 voce 3: 9.245 | AI7: ="PLATINUM voce 1: "&AI24& " voce 2: "&TEXT(AI25,"#.###")& " voce 3: "&TEXT(AI26,"#.###") -> PLATINUM voce 1: 947 voce 2: 94.766 voce 3: 9.476
N8: 6 | O8: 0.15 | S8: 150 | T8: 7
N9: 7 | O9: 0.15 | S9: 175 | T9: 8
C10: Indice RSM | N10: 8 | O10: 0.15 | S10: 200 | T10: 9 | AN10: 2019 | AO10: 2020 | AP10: 2021 | AQ10: 2022
C11: indicetot | D11: =VLOOKUP(YEAR(c_dataeffetto),$C$12:$E$16,3,FALSE) -> 1.103812891 | AF11: 2019 | AG11: 2020 | AH11: 2021 | AI11: 2022 | AN11: 12300 | AO11: 12300 | AP11: =ROUND(AO11*$D$13,0) -> 12608 | AQ11: =ROUND(AP11*$D$14,0) -> 12923
C12: 2019 | D12: 1 | E12: =PRODUCT($D$12:D12) -> 1 | AF12: 330 | AG12: =INT(AG13/100) -> 338 | AH12: =INT(AH13/100) -> 346 | AI12: =INT(AI13/100) -> 355 | AN12: 24600 | AO12: 24600 | AP12: =ROUND(AO12*$D$13,0) -> 25215 | AQ12: =ROUND(AP12*$D$14,0) -> 25845
C13: 2020 | D13: 1.025 | E13: =PRODUCT($D$12:D13) -> 1.025 | AF13: 33000 | AG13: =ROUND(AF13*$D$13,0) -> 33825 | AH13: =ROUND(AG13*$D$14,0) -> 34671 | AI13: =ROUND(AH13*$D$15,0) -> 35538
C14: 2021 | D14: 1.025 | E14: =PRODUCT($D$12:D14) -> 1.050625 | AF14: 3300 | AG14: =INT(AG13/10) -> 3382 | AH14: =INT(AH13/10) -> 3467 | AI14: =INT(AI13/10) -> 3553
C15: 2022 | D15: 1.025 | E15: =PRODUCT($D$12:D15) -> 1.076890625 | AF15: 550 | AG15: =INT(AG16/100) -> 563 | AH15: =INT(AH16/100) -> 577 | AI15: =INT(AI16/100) -> 592
C16: 2023 | D16: 1.025 | E16: =PRODUCT($D$12:D16) -> 1.103812891 | AF16: 55000 | AG16: =ROUND(AF16*$D$13,0) -> 56375 | AH16: =ROUND(AG16*$D$14,0) -> 57784 | AI16: =ROUND(AH16*$D$15,0) -> 59229
C17: Indice Extra | D17: =VLOOKUP(YEAR(c_dataeffetto),$C$18:$E$22,3,FALSE) -> 1.011599545 | AF17: 5500 | AG17: =INT(AG16/10) -> 5637 | AH17: =INT(AH16/10) -> 5778 | AI17: =INT(AI16/10) -> 5922
C18: 2019 | D18: 1 | E18: =PRODUCT($D$18:D18) -> 1 | AF18: 660 | AG18: =INT(AG19/100) -> 676 | AH18: =INT(AH19/100) -> 693 | AI18: =INT(AI19/100) -> 710
C19: 2020 | D19: 1.004833 | E19: =PRODUCT($D$18:D19) -> 1.004833 | AF19: 66000 | AG19: =ROUND(AF19*$D$13,0) -> 67650 | AH19: =ROUND(AG19*$D$14,0) -> 69341 | AI19: =ROUND(AH19*$D$15,0) -> 71075
C20: 2021 | D20: 1.006734 | E20: =PRODUCT($D$18:D20) -> 1.011599545 | AF20: 6600 | AG20: =INT(AG19/10) -> 6765 | AH20: =INT(AH19/10) -> 6934 | AI20: =INT(AI19/10) -> 7107
C21: 2022 | D21: 1 | E21: =PRODUCT($D$18:D21) -> 1.011599545 | AF21: 770 | AG21: =INT(AG22/100) -> 789 | AH21: =INT(AH22/100) -> 808 | AI21: =INT(AI22/100) -> 829
C22: 2023 | D22: 1 | E22: =PRODUCT($D$18:D22) -> 1.011599545 | AF22: 77000 | AG22: =ROUND(AF22*$D$13,0) -> 78925 | AH22: =ROUND(AG22*$D$14,0) -> 80898 | AI22: =ROUND(AH22*$D$15,0) -> 82920
AF23: 7700 | AG23: =INT(AG22/10) -> 7892 | AH23: =INT(AH22/10) -> 8089 | AI23: =INT(AI22/10) -> 8292
AF24: 880 | AG24: =INT(AG25/100) -> 902 | AH24: =INT(AH25/100) -> 924 | AI24: =INT(AI25/100) -> 947
AF25: 88000 | AG25: =ROUND(AF25*$D$13,0) -> 90200 | AH25: =ROUND(AG25*$D$14,0) -> 92455 | AI25: =ROUND(AH25*$D$15,0) -> 94766
AF26: 8800 | AG26: =INT(AG25/10) -> 9020 | AH26: =INT(AH25/10) -> 9245 | AI26: =INT(AI25/10) -> 9476
D29: 53 nel 2021 | E29: 3369.34
E30: =E29/E14*E15 -> 3453.5735

Sheet SL (hidden)
B1: Listino 2019 - Rimborso spese mediche (SL)
B2: Opzione default: NO scoperto
B3: PREMI NETTI
B4: Spese sanitarie | C4: 330 | D4: 550 | E4: 660 | F4: 770 | G4: 880
B5: Spese di intervento chirurgico | C5: 33000 | D5: 55000 | E5: 66000 | F5: 77000 | G5: 88000
B6: Massimale integrativo | C6: 3300 | D6: 5500 | E6: 6600 | F6: 7700 | G6: 8800
B7: ETA | C7: BASIC voce 1: 330 voce 2: 33.000 voce 3: 3.300 | D7: NORMAL voce 1: 550 voce 2: 55.000 voce 3: 5.500 | E7: SILVER voce 1: 660 voce 2: 66.000 voce 3: 6.600 | F7: GOLD voce 1: 770 voce 2: 77.000 voce 3: 7.700 | G7: PLATINUM voce 1: 880 voce 2: 88.000 voce 3: 8.800
B8: 0 | C8: 525.68 | D8: 584.09 | E8: 642.49 | F8: 700.9 | G8: 759.31
B9: 1 | C9: 525.68 | D9: 584.09 | E9: 642.49 | F9: 700.9 | G9: 759.31
B10: 2 | C10: 525.68 | D10: 584.09 | E10: 642.49 | F10: 700.9 | G10: 759.31
B11: 3 | C11: 525.68 | D11: 584.09 | E11: 642.49 | F11: 700.9 | G11: 759.31
B12: 4 | C12: 525.68 | D12: 584.09 | E12: 642.49 | F12: 700.9 | G12: 759.31
B13: 5 | C13: 525.68 | D13: 584.09 | E13: 642.49 | F13: 700.9 | G13: 759.31
B14: 6 | C14: 525.68 | D14: 584.09 | E14: 642.49 | F14: 700.9 | G14: 759.31
B15: 7 | C15: 525.68 | D15: 584.09 | E15: 642.49 | F15: 700.9 | G15: 759.31
B16: 8 | C16: 525.68 | D16: 584.09 | E16: 642.49 | F16: 700.9 | G16: 759.31
B17: 9 | C17: 525.68 | D17: 584.09 | E17: 642.49 | F17: 700.9 | G17: 759.31
B18: 10 | C18: 525.68 | D18: 584.09 | E18: 642.49 | F18: 700.9 | G18: 759.31
B19: 11 | C19: 525.68 | D19: 584.09 | E19: 642.49 | F19: 700.9 | G19: 759.31
B20: 12 | C20: 525.68 | D20: 584.09 | E20: 642.49 | F20: 700.9 | G20: 759.31
B21: 13 | C21: 525.68 | D21: 584.09 | E21: 642.49 | F21: 700.9 | G21: 759.31
B22: 14 | C22: 525.68 | D22: 584.09 | E22: 642.49 | F22: 700.9 | G22: 759.31
B23: 15 | C23: 525.68 | D23: 584.09 | E23: 642.49 | F23: 700.9 | G23: 759.31
B24: 16 | C24: 525.68 | D24: 584.09 | E24: 642.49 | F24: 700.9 | G24: 759.31
B25: 17 | C25: 525.68 | D25: 584.09 | E25: 642.49 | F25: 700.9 | G25: 759.31
B26: 18 | C26: 800.18 | D26: 889.08 | E26: 977.99 | F26: 1066.9 | G26: 1155.81
B27: 19 | C27: 832.73 | D27: 925.25 | E27: 1017.78 | F27: 1110.3 | G27: 1202.83
B28: 20 | C28: 868.43 | D28: 964.92 | E28: 1061.42 | F28: 1157.91 | G28: 1254.4
B29: 21 | C29: 907.29 | D29: 1008.1 | E29: 1108.9 | F29: 1209.71 | G29: 1310.52
B30: 22 | C30: 950.34 | D30: 1055.93 | E30: 1161.53 | F30: 1267.12 | G30: 1372.71
B31: 23 | C31: 996.54 | D31: 1107.27 | E31: 1218 | F31: 1328.73 | G31: 1439.45
B32: 24 | C32: 1043.8 | D32: 1159.78 | E32: 1275.75 | F32: 1391.73 | G32: 1507.71
B33: 25 | C33: 1090 | D33: 1211.11 | E33: 1332.23 | F33: 1453.34 | G33: 1574.45
B34: 26 | C34: 1136.21 | D34: 1262.45 | E34: 1388.7 | F34: 1514.94 | G34: 1641.19
B35: 27 | C35: 1181.36 | D35: 1312.62 | E35: 1443.89 | F35: 1575.15 | G35: 1706.41
B36: 28 | C36: 1225.47 | D36: 1361.63 | E36: 1497.79 | F36: 1633.95 | G36: 1770.12
B37: 29 | C37: 1268.52 | D37: 1409.47 | E37: 1550.41 | F37: 1691.36 | G37: 1832.31
B38: 30 | C38: 1311.57 | D38: 1457.3 | E38: 1603.03 | F38: 1748.76 | G38: 1894.5
B39: 31 | C39: 1354.63 | D39: 1505.14 | E39: 1655.66 | F39: 1806.17 | G39: 1956.68
B40: 32 | C40: 1398.73 | D40: 1554.15 | E40: 1709.56 | F40: 1864.98 | G40: 2020.39
B41: 33 | C41: 1442.84 | D41: 1603.15 | E41: 1763.47 | F41: 1923.78 | G41: 2084.1
B42: 34 | C42: 1487.99 | D42: 1653.32 | E42: 1818.65 | F42: 1983.99 | G42: 2149.32
B43: 35 | C43: 1534.19 | D43: 1704.66 | E43: 1875.13 | F43: 2045.59 | G43: 2216.06
B44: 36 | C44: 1583.55 | D44: 1759.5 | E44: 1935.45 | F44: 2111.4 | G44: 2287.35
B45: 37 | C45: 1635 | D45: 1816.67 | E45: 1998.34 | F45: 2180.01 | G45: 2361.67
B46: 38 | C46: 1690.66 | D46: 1878.51 | E46: 2066.36 | F46: 2254.21 | G46: 2442.06
B47: 39 | C47: 1749.47 | D47: 1943.85 | E47: 2138.24 | F47: 2332.62 | G47: 2527.01
B48: 40 | C48: 1812.47 | D48: 2013.86 | E48: 2215.24 | F48: 2416.63 | G48: 2618.01
B49: 41 | C49: 1880.73 | D49: 2089.7 | E49: 2298.67 | F49: 2507.64 | G49: 2716.61
B50: 42 | C50: 1954.23 | D50: 2171.37 | E50: 2388.51 | F50: 2605.65 | G50: 2822.78
B51: 43 | C51: 2034.04 | D51: 2260.05 | E51: 2486.05 | F51: 2712.06 | G51: 2938.06
B52: 44 | C52: 2119.1 | D52: 2354.56 | E52: 2590.01 | F52: 2825.47 | G52: 3060.92
B53: 45 | C53: 2210.46 | D53: 2456.07 | E53: 2701.67 | F53: 2947.28 | G53: 3192.88
B54: 46 | C54: 2309.17 | D54: 2565.74 | E54: 2822.32 | F54: 3078.89 | G54: 3335.46
B55: 47 | C55: 2414.18 | D55: 2682.42 | E55: 2950.66 | F55: 3218.9 | G55: 3487.15
B56: 48 | C56: 2526.54 | D56: 2807.26 | E56: 3087.99 | F56: 3368.72 | G56: 3649.44
B57: 49 | C57: 2645.2 | D57: 2939.11 | E57: 3233.02 | F57: 3526.93 | G57: 3820.84
B58: 50 | C58: 2772.26 | D58: 3080.29 | E58: 3388.32 | F58: 3696.35 | G58: 4004.38
B59: 51 | C59: 2904.57 | D59: 3227.3 | E59: 3550.03 | F59: 3872.77 | G59: 4195.5
B60: 52 | C60: 3045.29 | D60: 3383.65 | E60: 3722.02 | F60: 4060.38 | G60: 4398.75
B61: 53 | C61: 3191.25 | D61: 3545.83 | E61: 3900.42 | F61: 4255 | G61: 4609.58
B62: 54 | C62: 3344.57 | D62: 3716.18 | E62: 4087.8 | F62: 4459.42 | G62: 4831.04
B63: 55 | C63: 3503.13 | D63: 3892.37 | E63: 4281.6 | F63: 4670.84 | G63: 5060.08
B64: 56 | C64: 3666.95 | D64: 4074.38 | E64: 4481.82 | F64: 4889.26 | G64: 5296.7
B65: 57 | C65: 3836.01 | D65: 4262.24 | E65: 4688.46 | F65: 5114.68 | G65: 5540.91
B66: 58 | C66: 4010.33 | D66: 4455.92 | E66: 4901.51 | F66: 5347.1 | G66: 5792.7
B67: 59 | C67: 4188.85 | D67: 4654.27 | E67: 5119.7 | F67: 5585.13 | G67: 6050.55
B68: 60 | C68: 4370.51 | D68: 4856.12 | E68: 5341.74 | F68: 5827.35 | G68: 6312.96
B69: 61 | C69: 4555.33 | D69: 5061.48 | E69: 5567.63 | F69: 6073.77 | G69: 6579.92
B70: 62 | C70: 4742.25 | D70: 5269.16 | E70: 5796.08 | F70: 6323 | G70: 6849.91
B71: 63 | C71: 4930.22 | D71: 5478.02 | E71: 6025.82 | F71: 6573.62 | G71: 7121.42
B72: 64 | C72: 5120.28 | D72: 5689.2 | E72: 6258.12 | F72: 6827.04 | G72: 7395.96
B73: 65 | C73: 5310.35 | D73: 5900.39 | E73: 6490.43 | F73: 7080.47 | G73: 7670.51
B74: 66 | C74: 5499.37 | D74: 6110.41 | E74: 6721.45 | F74: 7332.49 | G74: 7943.53
B75: 67 | C75: 5688.39 | D75: 6320.43 | E75: 6952.47 | F75: 7584.52 | G75: 8216.56
B76: 68 | C76: 5875.3 | D76: 6528.12 | E76: 7180.93 | F76: 7833.74 | G76: 8486.55
B77: 69 | C77: 6060.12 | D77: 6733.47 | E77: 7406.82 | F77: 8080.16 | G77: 8753.51
B78: 70 | C78: 6241.79 | D78: 6935.32 | E78: 7628.85 | F78: 8322.39 | G78: 9015.92
B79: 71 | C79: 6420.31 | D79: 7133.67 | E79: 7847.04 | F79: 8560.41 | G79: 9273.77
B80: 72 | C80: 6595.67 | D80: 7328.52 | E80: 8061.38 | F80: 8794.23 | G80: 9527.08
B81: 73 | C81: 6767.89 | D81: 7519.88 | E81: 8271.86 | F81: 9023.85 | G81: 9775.84
B82: 74 | C82: 6935.9 | D82: 7706.56 | E82: 8477.22 | F82: 9247.87 | G82: 10018.53
B83: 75 | C83: 7100.77 | D83: 7889.74 | E83: 8678.72 | F83: 9467.69 | G83: 10256.67
B84: 76 | C84: 7262.49 | D84: 8069.43 | E84: 8876.37 | F84: 9683.31 | G84: 10490.26
B85: 77 | C85: 7422.1 | D85: 8246.78 | E85: 9071.46 | F85: 9896.13 | G85: 10720.81
B86: 78 | C86: 7579.62 | D86: 8421.79 | E86: 9263.97 | F86: 10106.15 | G86: 10948.33
B87: 79 | C87: 7740.28 | D87: 8600.31 | E87: 9460.34 | F87: 10320.37 | G87: 11180.4
B88: 80 | C88: 7890.44 | D88: 8767.16 | E88: 9643.88 | F88: 10520.59 | G88: 11397.31
B89: 81 | C89: 8036.41 | D89: 8929.34 | E89: 9822.28 | F89: 10715.21 | G89: 11608.15
B90: 82 | C90: 8179.22 | D90: 9088.02 | E90: 9996.83 | F90: 10905.63 | G90: 11814.43
B91: 83 | C91: 8316.78 | D91: 9240.87 | E91: 10164.96 | F91: 11089.05 | G91: 12013.13
B92: 84 | C92: 8448.05 | D92: 9386.72 | E92: 10325.39 | F92: 11264.06 | G92: 12202.73
B93: 85 | C93: 8570.91 | D93: 9523.23 | E93: 10475.55 | F93: 11427.88 | G93: 12380.2
B94: 86 | C94: 8682.22 | D94: 9646.91 | E94: 10611.6 | F94: 11576.29 | G94: 12540.98
B95: 87 | C95: 8778.83 | D95: 9754.25 | E95: 10729.68 | F95: 11705.1 | G95: 12680.53
B96: 88 | C96: 8853.39 | D96: 9837.09 | E96: 10820.8 | F96: 11804.51 | G96: 12788.22
B97: 89 | C97: 8897.49 | D97: 9886.1 | E97: 10874.71 | F97: 11863.32 | G97: 12851.93
B98: 90 | C98: 8897.49 | D98: 9886.1 | E98: 10874.71 | F98: 11863.32 | G98: 12851.93
B99: 91 | C99: 8897.49 | D99: 9886.1 | E99: 10874.71 | F99: 11863.32 | G99: 12851.93
B100: 92 | C100: 8897.49 | D100: 9886.1 | E100: 10874.71 | F100: 11863.32 | G100: 12851.93
B101: 93 | C101: 8897.49 | D101: 9886.1 | E101: 10874.71 | F101: 11863.32 | G101: 12851.93
B102: 94 | C102: 8897.49 | D102: 9886.1 | E102: 10874.71 | F102: 11863.32 | G102: 12851.93
B103: 95 | C103: 8897.49 | D103: 9886.1 | E103: 10874.71 | F103: 11863.32 | G103: 12851.93
B104: 96 | C104: 8897.49 | D104: 9886.1 | E104: 10874.71 | F104: 11863.32 | G104: 12851.93
B105: 97 | C105: 8897.49 | D105: 9886.1 | E105: 10874.71 | F105: 11863.32 | G105: 12851.93
B106: 98 | C106: 8897.49 | D106: 9886.1 | E106: 10874.71 | F106: 11863.32 | G106: 12851.93
B107: 99 | C107: 8897.49 | D107: 9886.1 | E107: 10874.71 | F107: 11863.32 | G107: 12851.93
B108: 100 | C108: 8897.49 | D108: 9886.1 | E108: 10874.71 | F108: 11863.32 | G108: 12851.93

Sheet GL (hidden)
B1: Listino 2019 - Raddoppio prestazioni per Grandi Interventi Chirurgici (GL)
B2: Opzione default: NO scoperto
B3: PREMI NETTI
B4: Spese di intervento chirurgico | C4: 33000 | D4: 55000 | E4: 66000 | F4: 77000 | G4: 88000
B5: ETA | C5: BASIC voce 1: 330 voce 2: 33.000 voce 3: 3.300 | D5: NORMAL voce 1: 550 voce 2: 55.000 voce 3: 5.500 | E5: SILVER voce 1: 660 voce 2: 66.000 voce 3: 6.600 | F5: GOLD voce 1: 770 voce 2: 77.000 voce 3: 7.700 | G5: PLATINUM voce 1: 880 voce 2: 88.000 voce 3: 8.800
B6: 0 | C6: 105.14 | D6: 116.82 | E6: 128.5 | F6: 140.18 | G6: 151.86
B7: 1 | C7: 105.14 | D7: 116.82 | E7: 128.5 | F7: 140.18 | G7: 151.86
B8: 2 | C8: 105.14 | D8: 116.82 | E8: 128.5 | F8: 140.18 | G8: 151.86
B9: 3 | C9: 105.14 | D9: 116.82 | E9: 128.5 | F9: 140.18 | G9: 151.86
B10: 4 | C10: 105.14 | D10: 116.82 | E10: 128.5 | F10: 140.18 | G10: 151.86
B11: 5 | C11: 105.14 | D11: 116.82 | E11: 128.5 | F11: 140.18 | G11: 151.86
B12: 6 | C12: 105.14 | D12: 116.82 | E12: 128.5 | F12: 140.18 | G12: 151.86
B13: 7 | C13: 105.14 | D13: 116.82 | E13: 128.5 | F13: 140.18 | G13: 151.86
B14: 8 | C14: 105.14 | D14: 116.82 | E14: 128.5 | F14: 140.18 | G14: 151.86
B15: 9 | C15: 105.14 | D15: 116.82 | E15: 128.5 | F15: 140.18 | G15: 151.86
B16: 10 | C16: 105.14 | D16: 116.82 | E16: 128.5 | F16: 140.18 | G16: 151.86
B17: 11 | C17: 105.14 | D17: 116.82 | E17: 128.5 | F17: 140.18 | G17: 151.86
B18: 12 | C18: 105.14 | D18: 116.82 | E18: 128.5 | F18: 140.18 | G18: 151.86
B19: 13 | C19: 105.14 | D19: 116.82 | E19: 128.5 | F19: 140.18 | G19: 151.86
B20: 14 | C20: 105.14 | D20: 116.82 | E20: 128.5 | F20: 140.18 | G20: 151.86
B21: 15 | C21: 105.14 | D21: 116.82 | E21: 128.5 | F21: 140.18 | G21: 151.86
B22: 16 | C22: 105.14 | D22: 116.82 | E22: 128.5 | F22: 140.18 | G22: 151.86
B23: 17 | C23: 105.14 | D23: 116.82 | E23: 128.5 | F23: 140.18 | G23: 151.86
B24: 18 | C24: 160.04 | D24: 177.82 | E24: 195.6 | F24: 213.38 | G24: 231.16
B25: 19 | C25: 166.55 | D25: 185.05 | E25: 203.56 | F25: 222.06 | G25: 240.57
B26: 20 | C26: 173.69 | D26: 192.98 | E26: 212.28 | F26: 231.58 | G26: 250.88
B27: 21 | C27: 181.46 | D27: 201.62 | E27: 221.78 | F27: 241.94 | G27: 262.1
B28: 22 | C28: 190.07 | D28: 211.19 | E28: 232.31 | F28: 253.42 | G28: 274.54
B29: 23 | C29: 199.31 | D29: 221.45 | E29: 243.6 | F29: 265.75 | G29: 287.89
B30: 24 | C30: 208.76 | D30: 231.96 | E30: 255.15 | F30: 278.35 | G30: 301.54
B31: 25 | C31: 218 | D31: 242.22 | E31: 266.45 | F31: 290.67 | G31: 314.89
B32: 26 | C32: 227.24 | D32: 252.49 | E32: 277.74 | F32: 302.99 | G32: 328.24
B33: 27 | C33: 236.27 | D33: 262.52 | E33: 288.78 | F33: 315.03 | G33: 341.28
B34: 28 | C34: 245.09 | D34: 272.33 | E34: 299.56 | F34: 326.79 | G34: 354.02
B35: 29 | C35: 253.7 | D35: 281.89 | E35: 310.08 | F35: 338.27 | G35: 366.46
B36: 30 | C36: 262.31 | D36: 291.46 | E36: 320.61 | F36: 349.75 | G36: 378.9
B37: 31 | C37: 270.93 | D37: 301.03 | E37: 331.13 | F37: 361.23 | G37: 391.34
B38: 32 | C38: 279.75 | D38: 310.83 | E38: 341.91 | F38: 373 | G38: 404.08
B39: 33 | C39: 288.57 | D39: 320.63 | E39: 352.69 | F39: 384.76 | G39: 416.82
B40: 34 | C40: 297.6 | D40: 330.66 | E40: 363.73 | F40: 396.8 | G40: 429.86
B41: 35 | C41: 306.84 | D41: 340.93 | E41: 375.03 | F41: 409.12 | G41: 443.21
B42: 36 | C42: 316.71 | D42: 351.9 | E42: 387.09 | F42: 422.28 | G42: 457.47
B43: 37 | C43: 327 | D43: 363.33 | E43: 399.67 | F43: 436 | G43: 472.33
B44: 38 | C44: 338.13 | D44: 375.7 | E44: 413.27 | F44: 450.84 | G44: 488.41
B45: 39 | C45: 349.89 | D45: 388.77 | E45: 427.65 | F45: 466.52 | G45: 505.4
B46: 40 | C46: 362.49 | D46: 402.77 | E46: 443.05 | F46: 483.33 | G46: 523.6
B47: 41 | C47: 376.15 | D47: 417.94 | E47: 459.73 | F47: 501.53 | G47: 543.32
B48: 42 | C48: 390.85 | D48: 434.27 | E48: 477.7 | F48: 521.13 | G48: 564.56
B49: 43 | C49: 406.81 | D49: 452.01 | E49: 497.21 | F49: 542.41 | G49: 587.61
B50: 44 | C50: 423.82 | D50: 470.91 | E50: 518 | F50: 565.09 | G50: 612.18
B51: 45 | C51: 442.09 | D51: 491.21 | E51: 540.33 | F51: 589.46 | G51: 638.58
B52: 46 | C52: 461.83 | D52: 513.15 | E52: 564.46 | F52: 615.78 | G52: 667.09
B53: 47 | C53: 482.84 | D53: 536.48 | E53: 590.13 | F53: 643.78 | G53: 697.43
B54: 48 | C54: 505.31 | D54: 561.45 | E54: 617.6 | F54: 673.74 | G54: 729.89
B55: 49 | C55: 529.04 | D55: 587.82 | E55: 646.6 | F55: 705.39 | G55: 764.17
B56: 50 | C56: 554.45 | D56: 616.06 | E56: 677.66 | F56: 739.27 | G56: 800.88
B57: 51 | C57: 580.91 | D57: 645.46 | E57: 710.01 | F57: 774.55 | G57: 839.1
B58: 52 | C58: 609.06 | D58: 676.73 | E58: 744.4 | F58: 812.08 | G58: 879.75
B59: 53 | C59: 638.25 | D59: 709.17 | E59: 780.08 | F59: 851 | G59: 921.92
B60: 54 | C60: 668.91 | D60: 743.24 | E60: 817.56 | F60: 891.88 | G60: 966.21
B61: 55 | C61: 700.63 | D61: 778.47 | E61: 856.32 | F61: 934.17 | G61: 1012.02
B62: 56 | C62: 733.39 | D62: 814.88 | E62: 896.36 | F62: 977.85 | G62: 1059.34
B63: 57 | C63: 767.2 | D63: 852.45 | E63: 937.69 | F63: 1022.94 | G63: 1108.18
B64: 58 | C64: 802.07 | D64: 891.18 | E64: 980.3 | F64: 1069.42 | G64: 1158.54
B65: 59 | C65: 837.77 | D65: 930.85 | E65: 1023.94 | F65: 1117.03 | G65: 1210.11
B66: 60 | C66: 874.1 | D66: 971.22 | E66: 1068.35 | F66: 1165.47 | G66: 1262.59
B67: 61 | C67: 911.07 | D67: 1012.3 | E67: 1113.53 | F67: 1214.75 | G67: 1315.98
B68: 62 | C68: 948.45 | D68: 1053.83 | E68: 1159.22 | F68: 1264.6 | G68: 1369.98
B69: 63 | C69: 986.04 | D69: 1095.6 | E69: 1205.16 | F69: 1314.72 | G69: 1424.28
B70: 64 | C70: 1024.06 | D70: 1137.84 | E70: 1251.62 | F70: 1365.41 | G70: 1479.19
B71: 65 | C71: 1062.07 | D71: 1180.08 | E71: 1298.09 | F71: 1416.09 | G71: 1534.1
B72: 66 | C72: 1099.87 | D72: 1222.08 | E72: 1344.29 | F72: 1466.5 | G72: 1588.71
B73: 67 | C73: 1137.68 | D73: 1264.09 | E73: 1390.49 | F73: 1516.9 | G73: 1643.31
B74: 68 | C74: 1175.06 | D74: 1305.62 | E74: 1436.19 | F74: 1566.75 | G74: 1697.31
B75: 69 | C75: 1212.02 | D75: 1346.69 | E75: 1481.36 | F75: 1616.03 | G75: 1750.7
B76: 70 | C76: 1248.36 | D76: 1387.06 | E76: 1525.77 | F76: 1664.48 | G76: 1803.18
B77: 71 | C77: 1284.06 | D77: 1426.73 | E77: 1569.41 | F77: 1712.08 | G77: 1854.75
B78: 72 | C78: 1319.13 | D78: 1465.7 | E78: 1612.28 | F78: 1758.85 | G78: 1905.42
B79: 73 | C79: 1353.58 | D79: 1503.98 | E79: 1654.37 | F79: 1804.77 | G79: 1955.17
B80: 74 | C80: 1387.18 | D80: 1541.31 | E80: 1695.44 | F80: 1849.57 | G80: 2003.71
B81: 75 | C81: 1420.15 | D81: 1577.95 | E81: 1735.74 | F81: 1893.54 | G81: 2051.33
B82: 76 | C82: 1452.5 | D82: 1613.89 | E82: 1775.27 | F82: 1936.66 | G82: 2098.05
B83: 77 | C83: 1484.42 | D83: 1649.36 | E83: 1814.29 | F83: 1979.23 | G83: 2144.16
B84: 78 | C84: 1515.92 | D84: 1684.36 | E84: 1852.79 | F84: 2021.23 | G84: 2189.67
B85: 79 | C85: 1548.06 | D85: 1720.06 | E85: 1892.07 | F85: 2064.07 | G85: 2236.08
B86: 80 | C86: 1578.09 | D86: 1753.43 | E86: 1928.78 | F86: 2104.12 | G86: 2279.46
B87: 81 | C87: 1607.28 | D87: 1785.87 | E87: 1964.46 | F87: 2143.04 | G87: 2321.63
B88: 82 | C88: 1635.84 | D88: 1817.6 | E88: 1999.37 | F88: 2181.13 | G88: 2362.89
B89: 83 | C89: 1663.36 | D89: 1848.17 | E89: 2032.99 | F89: 2217.81 | G89: 2402.63
B90: 84 | C90: 1689.61 | D90: 1877.34 | E90: 2065.08 | F90: 2252.81 | G90: 2440.55
B91: 85 | C91: 1714.18 | D91: 1904.65 | E91: 2095.11 | F91: 2285.58 | G91: 2476.04
B92: 86 | C92: 1736.44 | D92: 1929.38 | E92: 2122.32 | F92: 2315.26 | G92: 2508.2
B93: 87 | C93: 1755.77 | D93: 1950.85 | E93: 2145.94 | F93: 2341.02 | G93: 2536.11
B94: 88 | C94: 1770.68 | D94: 1967.42 | E94: 2164.16 | F94: 2360.9 | G94: 2557.64
B95: 89 | C95: 1779.5 | D95: 1977.22 | E95: 2174.94 | F95: 2372.66 | G95: 2570.39
B96: 90 | C96: 1779.5 | D96: 1977.22 | E96: 2174.94 | F96: 2372.66 | G96: 2570.39
B97: 91 | C97: 1779.5 | D97: 1977.22 | E97: 2174.94 | F97: 2372.66 | G97: 2570.39
B98: 92 | C98: 1779.5 | D98: 1977.22 | E98: 2174.94 | F98: 2372.66 | G98: 2570.39
B99: 93 | C99: 1779.5 | D99: 1977.22 | E99: 2174.94 | F99: 2372.66 | G99: 2570.39
B100: 94 | C100: 1779.5 | D100: 1977.22 | E100: 2174.94 | F100: 2372.66 | G100: 2570.39
B101: 95 | C101: 1779.5 | D101: 1977.22 | E101: 2174.94 | F101: 2372.66 | G101: 2570.39
B102: 96 | C102: 1779.5 | D102: 1977.22 | E102: 2174.94 | F102: 2372.66 | G102: 2570.39
B103: 97 | C103: 1779.5 | D103: 1977.22 | E103: 2174.94 | F103: 2372.66 | G103: 2570.39
B104: 98 | C104: 1779.5 | D104: 1977.22 | E104: 2174.94 | F104: 2372.66 | G104: 2570.39
B105: 99 | C105: 1779.5 | D105: 1977.22 | E105: 2174.94 | F105: 2372.66 | G105: 2570.39
B106: 100 | C106: 1779.5 | D106: 1977.22 | E106: 2174.94 | F106: 2372.66 | G106: 2570.39

Sheet OL (hidden)
B1: Listino 2019 - Prestazione integrativa per Interventi Chirurgici (OL)
B2: Opzione default: NO scoperto
B3: PREMI NETTI
B4: Massimale integrativo | C4: 12000 | D4: 24000
B5: ETA | C5: Opzione 1 | D5: Opzione 2
B6: 0 | C6: 55.49 | D6: 110.98
B7: 1 | C7: 55.49 | D7: 110.98
B8: 2 | C8: 55.49 | D8: 110.98
B9: 3 | C9: 55.49 | D9: 110.98
B10: 4 | C10: 55.49 | D10: 110.98
B11: 5 | C11: 55.49 | D11: 110.98
B12: 6 | C12: 55.49 | D12: 110.98
B13: 7 | C13: 55.49 | D13: 110.98
B14: 8 | C14: 55.49 | D14: 110.98
B15: 9 | C15: 55.49 | D15: 110.98
B16: 10 | C16: 55.49 | D16: 110.98
B17: 11 | C17: 55.49 | D17: 110.98
B18: 12 | C18: 55.49 | D18: 110.98
B19: 13 | C19: 55.49 | D19: 110.98
B20: 14 | C20: 55.49 | D20: 110.98
B21: 15 | C21: 55.49 | D21: 110.98
B22: 16 | C22: 55.49 | D22: 110.98
B23: 17 | C23: 55.49 | D23: 110.98
B24: 18 | C24: 84.46 | D24: 168.93
B25: 19 | C25: 87.9 | D25: 175.8
B26: 20 | C26: 91.67 | D26: 183.34
B27: 21 | C27: 95.77 | D27: 191.54
B28: 22 | C28: 100.31 | D28: 200.63
B29: 23 | C29: 105.19 | D29: 210.38
B30: 24 | C30: 110.18 | D30: 220.36
B31: 25 | C31: 115.06 | D31: 230.11
B32: 26 | C32: 119.93 | D32: 239.87
B33: 27 | C33: 124.7 | D33: 249.4
B34: 28 | C34: 129.35 | D34: 258.71
B35: 29 | C35: 133.9 | D35: 267.8
B36: 30 | C36: 138.44 | D36: 276.89
B37: 31 | C37: 142.99 | D37: 285.98
B38: 32 | C38: 147.64 | D38: 295.29
B39: 33 | C39: 152.3 | D39: 304.6
B40: 34 | C40: 157.07 | D40: 314.13
B41: 35 | C41: 161.94 | D41: 323.89
B42: 36 | C42: 167.15 | D42: 334.3
B43: 37 | C43: 172.58 | D43: 345.17
B44: 38 | C44: 178.46 | D44: 356.92
B45: 39 | C45: 184.67 | D45: 369.33
B46: 40 | C46: 191.32 | D46: 382.63
B47: 41 | C47: 198.52 | D47: 397.04
B48: 42 | C48: 206.28 | D48: 412.56
B49: 43 | C49: 214.7 | D49: 429.41
B50: 44 | C50: 223.68 | D50: 447.37
B51: 45 | C51: 233.33 | D51: 466.65
B52: 46 | C52: 243.75 | D52: 487.49
B53: 47 | C53: 254.83 | D53: 509.66
B54: 48 | C54: 266.69 | D54: 533.38
B55: 49 | C55: 279.22 | D55: 558.43
B56: 50 | C56: 292.63 | D56: 585.26
B57: 51 | C57: 306.59 | D57: 613.19
B58: 52 | C58: 321.45 | D58: 642.89
B59: 53 | C59: 336.85 | D59: 673.71
B60: 54 | C60: 353.04 | D60: 706.07
B61: 55 | C61: 369.77 | D61: 739.55
B62: 56 | C62: 387.07 | D62: 774.13
B63: 57 | C63: 404.91 | D63: 809.82
B64: 58 | C64: 423.31 | D64: 846.62
B65: 59 | C65: 442.16 | D65: 884.31
B66: 60 | C66: 461.33 | D66: 922.66
B67: 61 | C67: 480.84 | D67: 961.68
B68: 62 | C68: 500.57 | D68: 1001.14
B69: 63 | C69: 520.41 | D69: 1040.82
B70: 64 | C70: 540.47 | D70: 1080.95
B71: 65 | C71: 560.54 | D71: 1121.07
B72: 66 | C72: 580.49 | D72: 1160.98
B73: 67 | C73: 600.44 | D73: 1200.88
B74: 68 | C74: 620.17 | D74: 1240.34
B75: 69 | C75: 639.68 | D75: 1279.36
B76: 70 | C76: 658.86 | D76: 1317.71
B77: 71 | C77: 677.7 | D77: 1355.4
B78: 72 | C78: 696.21 | D78: 1392.42
B79: 73 | C79: 714.39 | D79: 1428.78
B80: 74 | C80: 732.12 | D80: 1464.25
B81: 75 | C81: 749.53 | D81: 1499.05
B82: 76 | C82: 766.6 | D82: 1533.19
B83: 77 | C83: 783.44 | D83: 1566.89
B84: 78 | C84: 800.07 | D84: 1600.14
B85: 79 | C85: 817.03 | D85: 1634.06
B86: 80 | C86: 832.88 | D86: 1665.76
B87: 81 | C87: 848.29 | D87: 1696.58
B88: 82 | C88: 863.36 | D88: 1726.72
B89: 83 | C89: 877.88 | D89: 1755.77
B90: 84 | C90: 891.74 | D90: 1783.48
B91: 85 | C91: 904.71 | D91: 1809.41
B92: 86 | C92: 916.46 | D92: 1832.91
B93: 87 | C93: 926.65 | D93: 1853.31
B94: 88 | C94: 934.52 | D94: 1869.05
B95: 89 | C95: 939.18 | D95: 1878.36
B96: 90 | C96: 939.18 | D96: 1878.36
B97: 91 | C97: 939.18 | D97: 1878.36
B98: 92 | C98: 939.18 | D98: 1878.36
B99: 93 | C99: 939.18 | D99: 1878.36
B100: 94 | C100: 939.18 | D100: 1878.36
B101: 95 | C101: 939.18 | D101: 1878.36
B102: 96 | C102: 939.18 | D102: 1878.36
B103: 97 | C103: 939.18 | D103: 1878.36
B104: 98 | C104: 939.18 | D104: 1878.36
B105: 99 | C105: 939.18 | D105: 1878.36
B106: 100 | C106: 939.18 | D106: 1878.36

Sheet DSU (hidden)
B1: Listino 2019 - Formula Standard (DSU)
B2: PREMI NETTI
B3: età | C3: DSU025 | D3: DSU050 | E3: DSU075 | F3: DSU100 | G3: DSU125 | H3: DSU150 | I3: DSU175 | J3: DSU200
B4: 0 | C4: 36.14 | D4: 72.29 | E4: 108.43 | F4: 144.58 | G4: 180.72 | H4: 216.87 | I4: 253.01 | J4: 289.15
B5: 1 | C5: 36.14 | D5: 72.29 | E5: 108.43 | F5: 144.58 | G5: 180.72 | H5: 216.87 | I5: 253.01 | J5: 289.15
B6: 2 | C6: 36.14 | D6: 72.29 | E6: 108.43 | F6: 144.58 | G6: 180.72 | H6: 216.87 | I6: 253.01 | J6: 289.15
B7: 3 | C7: 36.14 | D7: 72.29 | E7: 108.43 | F7: 144.58 | G7: 180.72 | H7: 216.87 | I7: 253.01 | J7: 289.15
B8: 4 | C8: 36.14 | D8: 72.29 | E8: 108.43 | F8: 144.58 | G8: 180.72 | H8: 216.87 | I8: 253.01 | J8: 289.15
B9: 5 | C9: 36.14 | D9: 72.29 | E9: 108.43 | F9: 144.58 | G9: 180.72 | H9: 216.87 | I9: 253.01 | J9: 289.15
B10: 6 | C10: 36.14 | D10: 72.29 | E10: 108.43 | F10: 144.58 | G10: 180.72 | H10: 216.87 | I10: 253.01 | J10: 289.15
B11: 7 | C11: 36.14 | D11: 72.29 | E11: 108.43 | F11: 144.58 | G11: 180.72 | H11: 216.87 | I11: 253.01 | J11: 289.15
B12: 8 | C12: 36.14 | D12: 72.29 | E12: 108.43 | F12: 144.58 | G12: 180.72 | H12: 216.87 | I12: 253.01 | J12: 289.15
B13: 9 | C13: 36.14 | D13: 72.29 | E13: 108.43 | F13: 144.58 | G13: 180.72 | H13: 216.87 | I13: 253.01 | J13: 289.15
B14: 10 | C14: 36.14 | D14: 72.29 | E14: 108.43 | F14: 144.58 | G14: 180.72 | H14: 216.87 | I14: 253.01 | J14: 289.15
B15: 11 | C15: 36.14 | D15: 72.29 | E15: 108.43 | F15: 144.58 | G15: 180.72 | H15: 216.87 | I15: 253.01 | J15: 289.15
B16: 12 | C16: 36.14 | D16: 72.29 | E16: 108.43 | F16: 144.58 | G16: 180.72 | H16: 216.87 | I16: 253.01 | J16: 289.15
B17: 13 | C17: 36.14 | D17: 72.29 | E17: 108.43 | F17: 144.58 | G17: 180.72 | H17: 216.87 | I17: 253.01 | J17: 289.15
B18: 14 | C18: 36.14 | D18: 72.29 | E18: 108.43 | F18: 144.58 | G18: 180.72 | H18: 216.87 | I18: 253.01 | J18: 289.15
B19: 15 | C19: 36.14 | D19: 72.29 | E19: 108.43 | F19: 144.58 | G19: 180.72 | H19: 216.87 | I19: 253.01 | J19: 289.15
B20: 16 | C20: 36.14 | D20: 72.29 | E20: 108.43 | F20: 144.58 | G20: 180.72 | H20: 216.87 | I20: 253.01 | J20: 289.15
B21: 17 | C21: 36.14 | D21: 72.29 | E21: 108.43 | F21: 144.58 | G21: 180.72 | H21: 216.87 | I21: 253.01 | J21: 289.15
B22: 18 | C22: 40.16 | D22: 80.32 | E22: 120.48 | F22: 160.64 | G22: 200.8 | H22: 240.96 | I22: 281.12 | J22: 321.28
B23: 19 | C23: 40.94 | D23: 81.87 | E23: 122.81 | F23: 163.74 | G23: 204.68 | H23: 245.62 | I23: 286.55 | J23: 327.49
B24: 20 | C24: 41.79 | D24: 83.58 | E24: 125.37 | F24: 167.16 | G24: 208.95 | H24: 250.74 | I24: 292.53 | J24: 334.32
B25: 21 | C25: 42.72 | D25: 85.44 | E25: 128.16 | F25: 170.88 | G25: 213.61 | H25: 256.33 | I25: 299.05 | J25: 341.77
B26: 22 | C26: 43.73 | D26: 87.46 | E26: 131.19 | F26: 174.92 | G26: 218.65 | H26: 262.38 | I26: 306.11 | J26: 349.84
B27: 23 | C27: 44.89 | D27: 89.79 | E27: 134.68 | F27: 179.58 | G27: 224.47 | H27: 269.36 | I27: 314.26 | J27: 359.15
B28: 24 | C28: 45.98 | D28: 91.96 | E28: 137.94 | F28: 183.92 | G28: 229.9 | H28: 275.88 | I28: 321.86 | J28: 367.84
B29: 25 | C29: 46.91 | D29: 93.82 | E29: 140.74 | F29: 187.65 | G29: 234.56 | H29: 281.47 | I29: 328.38 | J29: 375.29
B30: 26 | C30: 47.84 | D30: 95.69 | E30: 143.53 | F30: 191.37 | G30: 239.21 | H30: 287.06 | I30: 334.9 | J30: 382.74
B31: 27 | C31: 48.7 | D31: 97.39 | E31: 146.09 | F31: 194.79 | G31: 243.48 | H31: 292.18 | I31: 340.88 | J31: 389.57
B32: 28 | C32: 49.47 | D32: 98.95 | E32: 148.42 | F32: 197.89 | G32: 247.36 | H32: 296.84 | I32: 346.31 | J32: 395.78
B33: 29 | C33: 50.17 | D33: 100.34 | E33: 150.51 | F33: 200.68 | G33: 250.86 | H33: 301.03 | I33: 351.2 | J33: 401.37
B34: 30 | C34: 50.87 | D34: 101.74 | E34: 152.61 | F34: 203.48 | G34: 254.35 | H34: 305.22 | I34: 356.09 | J34: 406.96
B35: 31 | C35: 51.57 | D35: 103.14 | E35: 154.7 | F35: 206.27 | G35: 257.84 | H35: 309.41 | I35: 360.98 | J35: 412.54
B36: 32 | C36: 52.27 | D36: 104.53 | E36: 156.8 | F36: 209.07 | G36: 261.33 | H36: 313.6 | I36: 365.86 | J36: 418.13
B37: 33 | C37: 52.96 | D37: 105.93 | E37: 158.89 | F37: 211.86 | G37: 264.82 | H37: 317.79 | I37: 370.75 | J37: 423.72
B38: 34 | C38: 53.82 | D38: 107.64 | E38: 161.46 | F38: 215.27 | G38: 269.09 | H38: 322.91 | I38: 376.73 | J38: 430.55
B39: 35 | C39: 54.75 | D39: 109.5 | E39: 164.25 | F39: 219 | G39: 273.75 | H39: 328.5 | I39: 383.25 | J39: 438
B40: 36 | C40: 55.76 | D40: 111.52 | E40: 167.28 | F40: 223.03 | G40: 278.79 | H40: 334.55 | I40: 390.31 | J40: 446.07
B41: 37 | C41: 57 | D41: 114 | E41: 171 | F41: 228 | G41: 285 | H41: 342 | I41: 399 | J41: 456
B42: 38 | C42: 58.4 | D42: 116.79 | E42: 175.19 | F42: 233.59 | G42: 291.98 | H42: 350.38 | I42: 408.78 | J42: 467.18
B43: 39 | C43: 59.95 | D43: 119.9 | E43: 179.85 | F43: 239.8 | G43: 299.75 | H43: 359.69 | I43: 419.64 | J43: 479.59
B44: 40 | C44: 61.73 | D44: 123.47 | E44: 185.2 | F44: 246.94 | G44: 308.67 | H44: 370.4 | I44: 432.14 | J44: 493.87
B45: 41 | C45: 63.67 | D45: 127.35 | E45: 191.02 | F45: 254.7 | G45: 318.37 | H45: 382.04 | I45: 445.72 | J45: 509.39
B46: 42 | C46: 65.92 | D46: 131.85 | E46: 197.77 | F46: 263.7 | G46: 329.62 | H46: 395.55 | I46: 461.47 | J46: 527.4
B47: 43 | C47: 68.41 | D47: 136.82 | E47: 205.22 | F47: 273.63 | G47: 342.04 | H47: 410.45 | I47: 478.85 | J47: 547.26
B48: 44 | C48: 71.05 | D48: 142.09 | E48: 213.14 | F48: 284.19 | G48: 355.23 | H48: 426.28 | I48: 497.32 | J48: 568.37
B49: 45 | C49: 74 | D49: 147.99 | E49: 221.99 | F49: 295.98 | G49: 369.98 | H49: 443.97 | I49: 517.97 | J49: 591.96
B50: 46 | C50: 77.18 | D50: 154.35 | E50: 231.53 | F50: 308.71 | G50: 385.88 | H50: 463.06 | I50: 540.24 | J50: 617.42
B51: 47 | C51: 80.67 | D51: 161.34 | E51: 242.01 | F51: 322.68 | G51: 403.35 | H51: 484.01 | I51: 564.68 | J51: 645.35
B52: 48 | C52: 84.39 | D52: 168.79 | E52: 253.18 | F52: 337.58 | G52: 421.97 | H52: 506.36 | I52: 590.76 | J52: 675.15
B53: 49 | C53: 88.43 | D53: 176.86 | E53: 265.29 | F53: 353.72 | G53: 442.15 | H53: 530.58 | I53: 619.01 | J53: 707.44
B54: 50 | C54: 92.78 | D54: 185.55 | E54: 278.33 | F54: 371.1 | G54: 463.88 | H54: 556.65 | I54: 649.43 | J54: 742.2
B55: 51 | C55: 97.43 | D55: 194.86 | E55: 292.29 | F55: 389.73 | G55: 487.16 | H55: 584.59 | I55: 682.02 | J55: 779.45
B56: 52 | C56: 102.32 | D56: 204.64 | E56: 306.96 | F56: 409.28 | G56: 511.6 | H56: 613.92 | I56: 716.24 | J56: 818.56
B57: 53 | C57: 107.6 | D57: 215.19 | E57: 322.79 | F57: 430.39 | G57: 537.99 | H57: 645.58 | I57: 753.18 | J57: 860.78
B58: 54 | C58: 113.18 | D58: 226.37 | E58: 339.55 | F58: 452.74 | G58: 565.92 | H58: 679.11 | I58: 792.29 | J58: 905.48
B59: 55 | C59: 119.01 | D59: 238.01 | E59: 357.02 | F59: 476.02 | G59: 595.03 | H59: 714.03 | I59: 833.04 | J59: 952.04
B60: 56 | C60: 125.21 | D60: 250.43 | E60: 375.64 | F60: 500.85 | G60: 626.07 | H60: 751.28 | I60: 876.49 | J60: 1001.71
B61: 57 | C61: 131.73 | D61: 263.46 | E61: 395.2 | F61: 526.93 | G61: 658.66 | H61: 790.39 | I61: 922.12 | J61: 1053.86
B62: 58 | C62: 138.48 | D62: 276.97 | E62: 415.45 | F62: 553.93 | G62: 692.42 | H62: 830.9 | I62: 969.38 | J62: 1107.87
B63: 59 | C63: 145.62 | D63: 291.25 | E63: 436.87 | F63: 582.49 | G63: 728.12 | H63: 873.74 | I63: 1019.36 | J63: 1164.98
B64: 60 | C64: 153.07 | D64: 306.15 | E64: 459.22 | F64: 612.29 | G64: 765.36 | H64: 918.44 | I64: 1071.51 | J64: 1224.58
B65: 61 | C65: 160.76 | D65: 321.51 | E65: 482.27 | F65: 643.02 | G65: 803.78 | H65: 964.53 | I65: 1125.29 | J65: 1286.05
B66: 62 | C66: 168.75 | D66: 337.5 | E66: 506.25 | F66: 675 | G66: 843.74 | H66: 1012.49 | I66: 1181.24 | J66: 1349.99
B67: 63 | C67: 177.05 | D67: 354.1 | E67: 531.16 | F67: 708.21 | G67: 885.26 | H67: 1062.31 | I67: 1239.37 | J67: 1416.42
B68: 64 | C68: 185.59 | D68: 371.18 | E68: 556.77 | F68: 742.35 | G68: 927.94 | H68: 1113.53 | I68: 1299.12 | J68: 1484.71
B69: 65 | C69: 194.36 | D69: 388.72 | E69: 583.07 | F69: 777.43 | G69: 971.79 | H69: 1166.15 | I69: 1360.51 | J69: 1554.86
B70: 66 | C70: 203.44 | D70: 406.87 | E70: 610.31 | F70: 813.75 | G70: 1017.19 | H70: 1220.62 | I70: 1424.06 | J70: 1627.5
B71: 67 | C71: 212.67 | D71: 425.34 | E71: 638.02 | F71: 850.69 | G71: 1063.36 | H71: 1276.03 | I71: 1488.71 | J71: 1701.38
B72: 68 | C72: 222.06 | D72: 444.12 | E72: 666.19 | F72: 888.25 | G72: 1110.31 | H72: 1332.37 | I72: 1554.44 | J72: 1776.5
B73: 69 | C73: 231.61 | D73: 463.21 | E73: 694.82 | F73: 926.43 | G73: 1158.04 | H73: 1389.64 | I73: 1621.25 | J73: 1852.86
B74: 70 | C74: 241.31 | D74: 482.62 | E74: 723.92 | F74: 965.23 | G74: 1206.54 | H74: 1447.85 | I74: 1689.16 | J74: 1930.46
B75: 71 | C75: 251.01 | D75: 502.02 | E75: 753.02 | F75: 1004.03 | G75: 1255.04 | H75: 1506.05 | I75: 1757.06 | J75: 2008.07
B76: 72 | C76: 260.71 | D76: 521.42 | E76: 782.13 | F76: 1042.83 | G76: 1303.54 | H76: 1564.25 | I76: 1824.96 | J76: 2085.67
B77: 73 | C77: 270.33 | D77: 540.66 | E77: 810.99 | F77: 1081.33 | G77: 1351.66 | H77: 1621.99 | I77: 1892.32 | J77: 2162.65
B78: 74 | C78: 279.72 | D78: 559.44 | E78: 839.16 | F78: 1118.89 | G78: 1398.61 | H78: 1678.33 | I78: 1958.05 | J78: 2237.77
B79: 75 | C79: 288.72 | D79: 577.45 | E79: 866.17 | F79: 1154.89 | G79: 1443.62 | H79: 1732.34 | I79: 2021.06 | J79: 2309.79
B80: 76 | C80: 297.18 | D80: 594.36 | E80: 891.55 | F80: 1188.73 | G80: 1485.91 | H80: 1783.09 | I80: 2080.28 | J80: 2377.46
B81: 77 | C81: 304.94 | D81: 609.89 | E81: 914.83 | F81: 1219.77 | G81: 1524.71 | H81: 1829.66 | I81: 2134.6 | J81: 2439.54
B82: 78 | C82: 311.69 | D82: 623.39 | E82: 935.08 | F82: 1246.78 | G82: 1558.47 | H82: 1870.16 | I82: 2181.86 | J82: 2493.55
B83: 79 | C83: 316.89 | D83: 633.79 | E83: 950.68 | F83: 1267.57 | G83: 1584.47 | H83: 1901.36 | I83: 2218.25 | J83: 2535.15
B84: 80 | C84: 320.15 | D84: 640.31 | E84: 960.46 | F84: 1280.61 | G84: 1600.76 | H84: 1920.92 | I84: 2241.07 | J84: 2561.22
B85: 81 | C85: 322.02 | D85: 644.03 | E85: 966.05 | F85: 1288.06 | G85: 1610.08 | H85: 1932.09 | I85: 2254.11 | J85: 2576.12
B86: 82 | C86: 322.02 | D86: 644.03 | E86: 966.05 | F86: 1288.06 | G86: 1610.08 | H86: 1932.09 | I86: 2254.11 | J86: 2576.12
B87: 83 | C87: 322.02 | D87: 644.03 | E87: 966.05 | F87: 1288.06 | G87: 1610.08 | H87: 1932.09 | I87: 2254.11 | J87: 2576.12
B88: 84 | C88: 322.02 | D88: 644.03 | E88: 966.05 | F88: 1288.06 | G88: 1610.08 | H88: 1932.09 | I88: 2254.11 | J88: 2576.12
B89: 85 | C89: 322.02 | D89: 644.03 | E89: 966.05 | F89: 1288.06 | G89: 1610.08 | H89: 1932.09 | I89: 2254.11 | J89: 2576.12
B90: 86 | C90: 322.02 | D90: 644.03 | E90: 966.05 | F90: 1288.06 | G90: 1610.08 | H90: 1932.09 | I90: 2254.11 | J90: 2576.12
B91: 87 | C91: 322.02 | D91: 644.03 | E91: 966.05 | F91: 1288.06 | G91: 1610.08 | H91: 1932.09 | I91: 2254.11 | J91: 2576.12
B92: 88 | C92: 322.02 | D92: 644.03 | E92: 966.05 | F92: 1288.06 | G92: 1610.08 | H92: 1932.09 | I92: 2254.11 | J92: 2576.12
B93: 89 | C93: 322.02 | D93: 644.03 | E93: 966.05 | F93: 1288.06 | G93: 1610.08 | H93: 1932.09 | I93: 2254.11 | J93: 2576.12
B94: 90 | C94: 322.02 | D94: 644.03 | E94: 966.05 | F94: 1288.06 | G94: 1610.08 | H94: 1932.09 | I94: 2254.11 | J94: 2576.12
B95: 91 | C95: 322.02 | D95: 644.03 | E95: 966.05 | F95: 1288.06 | G95: 1610.08 | H95: 1932.09 | I95: 2254.11 | J95: 2576.12
B96: 92 | C96: 322.02 | D96: 644.03 | E96: 966.05 | F96: 1288.06 | G96: 1610.08 | H96: 1932.09 | I96: 2254.11 | J96: 2576.12
B97: 93 | C97: 322.02 | D97: 644.03 | E97: 966.05 | F97: 1288.06 | G97: 1610.08 | H97: 1932.09 | I97: 2254.11 | J97: 2576.12
B98: 94 | C98: 322.02 | D98: 644.03 | E98: 966.05 | F98: 1288.06 | G98: 1610.08 | H98: 1932.09 | I98: 2254.11 | J98: 2576.12
B99: 95 | C99: 322.02 | D99: 644.03 | E99: 966.05 | F99: 1288.06 | G99: 1610.08 | H99: 1932.09 | I99: 2254.11 | J99: 2576.12
B100: 96 | C100: 322.02 | D100: 644.03 | E100: 966.05 | F100: 1288.06 | G100: 1610.08 | H100: 1932.09 | I100: 2254.11 | J100: 2576.12
B101: 97 | C101: 322.02 | D101: 644.03 | E101: 966.05 | F101: 1288.06 | G101: 1610.08 | H101: 1932.09 | I101: 2254.11 | J101: 2576.12
B102: 98 | C102: 322.02 | D102: 644.03 | E102: 966.05 | F102: 1288.06 | G102: 1610.08 | H102: 1932.09 | I102: 2254.11 | J102: 2576.12
B103: 99 | C103: 322.02 | D103: 644.03 | E103: 966.05 | F103: 1288.06 | G103: 1610.08 | H103: 1932.09 | I103: 2254.11 | J103: 2576.12
B104: 100 | C104: 322.02 | D104: 644.03 | E104: 966.05 | F104: 1288.06 | G104: 1610.08 | H104: 1932.09 | I104: 2254.11 | J104: 2576.12

Sheet TPU (hidden)
B1: Listino 2019 - Formula Standard (DSU)
B2: PREMI NETTI
B3: età | C3: TPU025 | D3: TPU050 | E3: TPU075 | F3: TPU100 | G3: TPU125 | H3: TPU150 | I3: TPU175 | J3: TPU200
B4: 0 | C4: 56.27 | D4: 112.54 | E4: 168.8 | F4: 225.07 | G4: 281.34 | H4: 337.61 | I4: 393.88 | J4: 450.15
B5: 1 | C5: 56.27 | D5: 112.54 | E5: 168.8 | F5: 225.07 | G5: 281.34 | H5: 337.61 | I5: 393.88 | J5: 450.15
B6: 2 | C6: 56.27 | D6: 112.54 | E6: 168.8 | F6: 225.07 | G6: 281.34 | H6: 337.61 | I6: 393.88 | J6: 450.15
B7: 3 | C7: 56.27 | D7: 112.54 | E7: 168.8 | F7: 225.07 | G7: 281.34 | H7: 337.61 | I7: 393.88 | J7: 450.15
B8: 4 | C8: 56.27 | D8: 112.54 | E8: 168.8 | F8: 225.07 | G8: 281.34 | H8: 337.61 | I8: 393.88 | J8: 450.15
B9: 5 | C9: 56.27 | D9: 112.54 | E9: 168.8 | F9: 225.07 | G9: 281.34 | H9: 337.61 | I9: 393.88 | J9: 450.15
B10: 6 | C10: 56.27 | D10: 112.54 | E10: 168.8 | F10: 225.07 | G10: 281.34 | H10: 337.61 | I10: 393.88 | J10: 450.15
B11: 7 | C11: 56.27 | D11: 112.54 | E11: 168.8 | F11: 225.07 | G11: 281.34 | H11: 337.61 | I11: 393.88 | J11: 450.15
B12: 8 | C12: 56.27 | D12: 112.54 | E12: 168.8 | F12: 225.07 | G12: 281.34 | H12: 337.61 | I12: 393.88 | J12: 450.15
B13: 9 | C13: 56.27 | D13: 112.54 | E13: 168.8 | F13: 225.07 | G13: 281.34 | H13: 337.61 | I13: 393.88 | J13: 450.15
B14: 10 | C14: 56.27 | D14: 112.54 | E14: 168.8 | F14: 225.07 | G14: 281.34 | H14: 337.61 | I14: 393.88 | J14: 450.15
B15: 11 | C15: 56.27 | D15: 112.54 | E15: 168.8 | F15: 225.07 | G15: 281.34 | H15: 337.61 | I15: 393.88 | J15: 450.15
B16: 12 | C16: 56.27 | D16: 112.54 | E16: 168.8 | F16: 225.07 | G16: 281.34 | H16: 337.61 | I16: 393.88 | J16: 450.15
B17: 13 | C17: 56.27 | D17: 112.54 | E17: 168.8 | F17: 225.07 | G17: 281.34 | H17: 337.61 | I17: 393.88 | J17: 450.15
B18: 14 | C18: 56.27 | D18: 112.54 | E18: 168.8 | F18: 225.07 | G18: 281.34 | H18: 337.61 | I18: 393.88 | J18: 450.15
B19: 15 | C19: 56.27 | D19: 112.54 | E19: 168.8 | F19: 225.07 | G19: 281.34 | H19: 337.61 | I19: 393.88 | J19: 450.15
B20: 16 | C20: 56.27 | D20: 112.54 | E20: 168.8 | F20: 225.07 | G20: 281.34 | H20: 337.61 | I20: 393.88 | J20: 450.15
B21: 17 | C21: 56.27 | D21: 112.54 | E21: 168.8 | F21: 225.07 | G21: 281.34 | H21: 337.61 | I21: 393.88 | J21: 450.15
B22: 18 | C22: 62.52 | D22: 125.04 | E22: 187.56 | F22: 250.08 | G22: 312.6 | H22: 375.12 | I22: 437.64 | J22: 500.16
B23: 19 | C23: 63.99 | D23: 127.99 | E23: 191.98 | F23: 255.97 | G23: 319.96 | H23: 383.96 | I23: 447.95 | J23: 511.94
B24: 20 | C24: 65.62 | D24: 131.25 | E24: 196.87 | F24: 262.49 | G24: 328.12 | H24: 393.74 | I24: 459.36 | J24: 524.99
B25: 21 | C25: 67.39 | D25: 134.78 | E25: 202.17 | F25: 269.56 | G25: 336.96 | H25: 404.35 | I25: 471.74 | J25: 539.13
B26: 22 | C26: 69.31 | D26: 138.63 | E26: 207.94 | F26: 277.25 | G26: 346.56 | H26: 415.88 | I26: 485.19 | J26: 554.5
B27: 23 | C27: 71.53 | D27: 143.05 | E27: 214.58 | F27: 286.1 | G27: 357.63 | H27: 429.15 | I27: 500.68 | J27: 572.2
B28: 24 | C28: 73.59 | D28: 147.19 | E28: 220.78 | F28: 294.37 | G28: 367.96 | H28: 441.56 | I28: 515.15 | J28: 588.74
B29: 25 | C29: 75.36 | D29: 150.73 | E29: 226.09 | F29: 301.46 | G29: 376.82 | H29: 452.19 | I29: 527.55 | J29: 602.92
B30: 26 | C30: 77.14 | D30: 154.27 | E30: 231.41 | F30: 308.55 | G30: 385.68 | H30: 462.82 | I30: 539.96 | J30: 617.1
B31: 27 | C31: 78.76 | D31: 157.52 | E31: 236.28 | F31: 315.04 | G31: 393.8 | H31: 472.55 | I31: 551.31 | J31: 630.07
B32: 28 | C32: 80.24 | D32: 160.48 | E32: 240.72 | F32: 320.96 | G32: 401.2 | H32: 481.44 | I32: 561.68 | J32: 641.92
B33: 29 | C33: 81.57 | D33: 163.13 | E33: 244.7 | F33: 326.27 | G33: 407.83 | H33: 489.4 | I33: 570.97 | J33: 652.53
B34: 30 | C34: 82.9 | D34: 165.8 | E34: 248.69 | F34: 331.59 | G34: 414.49 | H34: 497.39 | I34: 580.29 | J34: 663.18
B35: 31 | C35: 84.22 | D35: 168.45 | E35: 252.67 | F35: 336.9 | G35: 421.12 | H35: 505.35 | I35: 589.57 | J35: 673.8
B36: 32 | C36: 85.55 | D36: 171.1 | E36: 256.65 | F36: 342.21 | G36: 427.76 | H36: 513.31 | I36: 598.86 | J36: 684.41
B37: 33 | C37: 86.88 | D37: 173.76 | E37: 260.64 | F37: 347.51 | G37: 434.39 | H37: 521.27 | I37: 608.15 | J37: 695.03
B38: 34 | C38: 88.51 | D38: 177.02 | E38: 265.53 | F38: 354.04 | G38: 442.55 | H38: 531.06 | I38: 619.56 | J38: 708.07
B39: 35 | C39: 90.28 | D39: 180.55 | E39: 270.83 | F39: 361.11 | G39: 451.38 | H39: 541.66 | I39: 631.94 | J39: 722.22
B40: 36 | C40: 92.2 | D40: 184.4 | E40: 276.6 | F40: 368.79 | G40: 460.99 | H40: 553.19 | I40: 645.39 | J40: 737.59
B41: 37 | C41: 94.56 | D41: 189.11 | E41: 283.67 | F41: 378.23 | G41: 472.79 | H41: 567.34 | I41: 661.9 | J41: 756.46
B42: 38 | C42: 97.22 | D42: 194.44 | E42: 291.66 | F42: 388.88 | G42: 486.1 | H42: 583.32 | I42: 680.53 | J42: 777.75
B43: 39 | C43: 100.17 | D43: 200.34 | E43: 300.5 | F43: 400.67 | G43: 500.84 | H43: 601.01 | I43: 701.18 | J43: 801.35
B44: 40 | C44: 103.57 | D44: 207.13 | E44: 310.7 | F44: 414.27 | G44: 517.83 | H44: 621.4 | I44: 724.97 | J44: 828.53
B45: 41 | C45: 107.26 | D45: 214.52 | E45: 321.78 | F45: 429.04 | G45: 536.3 | H45: 643.56 | I45: 750.82 | J45: 858.08
B46: 42 | C46: 111.54 | D46: 223.09 | E46: 334.63 | F46: 446.18 | G46: 557.72 | H46: 669.27 | I46: 780.81 | J46: 892.36
B47: 43 | C47: 116.27 | D47: 232.53 | E47: 348.8 | F47: 465.06 | G47: 581.33 | H47: 697.6 | I47: 813.86 | J47: 930.13
B48: 44 | C48: 121.29 | D48: 242.58 | E48: 363.87 | F48: 485.16 | G48: 606.45 | H48: 727.74 | I48: 849.04 | J48: 970.33
B49: 45 | C49: 126.9 | D49: 253.8 | E49: 380.69 | F49: 507.59 | G49: 634.49 | H49: 761.39 | I49: 888.28 | J49: 1015.18
B50: 46 | C50: 132.95 | D50: 265.9 | E50: 398.85 | F50: 531.8 | G50: 664.75 | H50: 797.7 | I50: 930.65 | J50: 1063.6
B51: 47 | C51: 139.6 | D51: 279.19 | E51: 418.79 | F51: 558.39 | G51: 697.98 | H51: 837.58 | I51: 977.18 | J51: 1116.78
B52: 48 | C52: 146.68 | D52: 293.37 | E52: 440.05 | F52: 586.74 | G52: 733.42 | H52: 880.11 | I52: 1026.79 | J52: 1173.48
B53: 49 | C53: 154.36 | D53: 308.72 | E53: 463.08 | F53: 617.44 | G53: 771.8 | H53: 926.15 | I53: 1080.51 | J53: 1234.87
B54: 50 | C54: 162.63 | D54: 325.26 | E54: 487.88 | F54: 650.51 | G54: 813.14 | H54: 975.77 | I54: 1138.4 | J54: 1301.03
B55: 51 | C55: 171.49 | D55: 342.98 | E55: 514.48 | F55: 685.97 | G55: 857.46 | H55: 1028.95 | I55: 1200.45 | J55: 1371.94
B56: 52 | C56: 180.79 | D56: 361.59 | E56: 542.38 | F56: 723.17 | G56: 903.97 | H56: 1084.76 | I56: 1265.55 | J56: 1446.35
B57: 53 | C57: 190.83 | D57: 381.67 | E57: 572.5 | F57: 763.34 | G57: 954.17 | H57: 1145.01 | I57: 1335.84 | J57: 1526.68
B58: 54 | C58: 201.47 | D58: 402.93 | E58: 604.4 | F58: 805.86 | G58: 1007.33 | H58: 1208.8 | I58: 1410.26 | J58: 1611.73
B59: 55 | C59: 212.53 | D59: 425.07 | E59: 637.6 | F59: 850.14 | G59: 1062.67 | H59: 1275.21 | I59: 1487.74 | J59: 1700.28
B60: 56 | C60: 224.35 | D60: 448.7 | E60: 673.06 | F60: 897.41 | G60: 1121.76 | H60: 1346.11 | I60: 1570.46 | J60: 1794.82
B61: 57 | C61: 236.76 | D61: 473.51 | E61: 710.27 | F61: 947.02 | G61: 1183.78 | H61: 1420.54 | I61: 1657.29 | J61: 1894.05
B62: 58 | C62: 249.6 | D62: 499.2 | E62: 748.8 | F62: 998.4 | G62: 1248 | H62: 1497.6 | I62: 1747.2 | J62: 1996.81
B63: 59 | C63: 263.19 | D63: 526.37 | E63: 789.56 | F63: 1052.74 | G63: 1315.93 | H63: 1579.11 | I63: 1842.3 | J63: 2105.49
B64: 60 | C64: 277.36 | D64: 554.72 | E64: 832.08 | F64: 1109.45 | G64: 1386.81 | H64: 1664.17 | I64: 1941.53 | J64: 2218.89
B65: 61 | C65: 291.98 | D65: 583.97 | E65: 875.95 | F65: 1167.93 | G65: 1459.91 | H65: 1751.9 | I65: 2043.88 | J65: 2335.86
B66: 62 | C66: 307.19 | D66: 614.37 | E66: 921.56 | F66: 1228.74 | G66: 1535.93 | H66: 1843.11 | I66: 2150.3 | J66: 2457.48
B67: 63 | C67: 322.99 | D67: 645.98 | E67: 968.96 | F67: 1291.95 | G67: 1614.94 | H67: 1937.93 | I67: 2260.91 | J67: 2583.9
B68: 64 | C68: 339.23 | D68: 678.46 | E68: 1017.69 | F68: 1356.92 | G68: 1696.15 | H68: 2035.39 | I68: 2374.62 | J68: 2713.85
B69: 65 | C69: 355.92 | D69: 711.84 | E69: 1067.76 | F69: 1423.68 | G69: 1779.6 | H69: 2135.52 | I69: 2491.43 | J69: 2847.35
B70: 66 | C70: 373.19 | D70: 746.39 | E70: 1119.58 | F70: 1492.78 | G70: 1865.97 | H70: 2239.16 | I70: 2612.36 | J70: 2985.55
B71: 67 | C71: 390.76 | D71: 781.52 | E71: 1172.28 | F71: 1563.04 | G71: 1953.8 | H71: 2344.56 | I71: 2735.32 | J71: 3126.08
B72: 68 | C72: 408.62 | D72: 817.25 | E72: 1225.87 | F72: 1634.5 | G72: 2043.12 | H72: 2451.75 | I72: 2860.37 | J72: 3269
B73: 69 | C73: 426.79 | D73: 853.59 | E73: 1280.38 | F73: 1707.18 | G73: 2133.97 | H73: 2560.76 | I73: 2987.56 | J73: 3414.35
B74: 70 | C74: 445.25 | D74: 890.49 | E74: 1335.74 | F74: 1780.98 | G74: 2226.23 | H74: 2671.47 | I74: 3116.72 | J74: 3561.96
B75: 71 | C75: 463.7 | D75: 927.4 | E75: 1391.1 | F75: 1854.81 | G75: 2318.51 | H75: 2782.21 | I75: 3245.91 | J75: 3709.61
B76: 72 | C76: 482.17 | D76: 964.33 | E76: 1446.5 | F76: 1928.66 | G76: 2410.83 | H76: 2893 | I76: 3375.16 | J76: 3857.33
B77: 73 | C77: 500.47 | D77: 1000.94 | E77: 1501.42 | F77: 2001.89 | G77: 2502.36 | H77: 3002.83 | I77: 3503.31 | J77: 4003.78
B78: 74 | C78: 518.34 | D78: 1036.67 | E78: 1555.01 | F78: 2073.35 | G78: 2591.69 | H78: 3110.02 | I78: 3628.36 | J78: 4146.7
B79: 75 | C79: 535.47 | D79: 1070.93 | E79: 1606.4 | F79: 2141.87 | G79: 2677.33 | H79: 3212.8 | I79: 3748.27 | J79: 4283.73
B80: 76 | C80: 551.56 | D80: 1103.13 | E80: 1654.69 | F80: 2206.26 | G80: 2757.82 | H80: 3309.39 | I80: 3860.95 | J80: 4412.51
B81: 77 | C81: 566.33 | D81: 1132.66 | E81: 1698.99 | F81: 2265.32 | G81: 2831.65 | H81: 3397.98 | I81: 3964.31 | J81: 4530.65
B82: 78 | C82: 579.17 | D82: 1158.34 | E82: 1737.51 | F82: 2316.68 | G82: 2895.86 | H82: 3475.03 | I82: 4054.2 | J82: 4633.37
B83: 79 | C83: 589.06 | D83: 1178.12 | E83: 1767.19 | F83: 2356.25 | G83: 2945.31 | H83: 3534.37 | I83: 4123.44 | J83: 4712.5
B84: 80 | C84: 595.26 | D84: 1190.53 | E84: 1785.79 | F84: 2381.06 | G84: 2976.32 | H84: 3571.59 | I84: 4166.85 | J84: 4762.11
B85: 81 | C85: 598.81 | D85: 1197.63 | E85: 1796.44 | F85: 2395.25 | G85: 2994.06 | H85: 3592.88 | I85: 4191.69 | J85: 4790.5
B86: 82 | C86: 598.81 | D86: 1197.63 | E86: 1796.44 | F86: 2395.25 | G86: 2994.06 | H86: 3592.88 | I86: 4191.69 | J86: 4790.5
B87: 83 | C87: 598.81 | D87: 1197.63 | E87: 1796.44 | F87: 2395.25 | G87: 2994.06 | H87: 3592.88 | I87: 4191.69 | J87: 4790.5
B88: 84 | C88: 598.81 | D88: 1197.63 | E88: 1796.44 | F88: 2395.25 | G88: 2994.06 | H88: 3592.88 | I88: 4191.69 | J88: 4790.5
B89: 85 | C89: 598.81 | D89: 1197.63 | E89: 1796.44 | F89: 2395.25 | G89: 2994.06 | H89: 3592.88 | I89: 4191.69 | J89: 4790.5
B90: 86 | C90: 598.81 | D90: 1197.63 | E90: 1796.44 | F90: 2395.25 | G90: 2994.06 | H90: 3592.88 | I90: 4191.69 | J90: 4790.5
B91: 87 | C91: 598.81 | D91: 1197.63 | E91: 1796.44 | F91: 2395.25 | G91: 2994.06 | H91: 3592.88 | I91: 4191.69 | J91: 4790.5
B92: 88 | C92: 598.81 | D92: 1197.63 | E92: 1796.44 | F92: 2395.25 | G92: 2994.06 | H92: 3592.88 | I92: 4191.69 | J92: 4790.5
B93: 89 | C93: 598.81 | D93: 1197.63 | E93: 1796.44 | F93: 2395.25 | G93: 2994.06 | H93: 3592.88 | I93: 4191.69 | J93: 4790.5
B94: 90 | C94: 598.81 | D94: 1197.63 | E94: 1796.44 | F94: 2395.25 | G94: 2994.06 | H94: 3592.88 | I94: 4191.69 | J94: 4790.5
B95: 91 | C95: 598.81 | D95: 1197.63 | E95: 1796.44 | F95: 2395.25 | G95: 2994.06 | H95: 3592.88 | I95: 4191.69 | J95: 4790.5
B96: 92 | C96: 598.81 | D96: 1197.63 | E96: 1796.44 | F96: 2395.25 | G96: 2994.06 | H96: 3592.88 | I96: 4191.69 | J96: 4790.5
B97: 93 | C97: 598.81 | D97: 1197.63 | E97: 1796.44 | F97: 2395.25 | G97: 2994.06 | H97: 3592.88 | I97: 4191.69 | J97: 4790.5
B98: 94 | C98: 598.81 | D98: 1197.63 | E98: 1796.44 | F98: 2395.25 | G98: 2994.06 | H98: 3592.88 | I98: 4191.69 | J98: 4790.5
B99: 95 | C99: 598.81 | D99: 1197.63 | E99: 1796.44 | F99: 2395.25 | G99: 2994.06 | H99: 3592.88 | I99: 4191.69 | J99: 4790.5
B100: 96 | C100: 598.81 | D100: 1197.63 | E100: 1796.44 | F100: 2395.25 | G100: 2994.06 | H100: 3592.88 | I100: 4191.69 | J100: 4790.5
B101: 97 | C101: 598.81 | D101: 1197.63 | E101: 1796.44 | F101: 2395.25 | G101: 2994.06 | H101: 3592.88 | I101: 4191.69 | J101: 4790.5
B102: 98 | C102: 598.81 | D102: 1197.63 | E102: 1796.44 | F102: 2395.25 | G102: 2994.06 | H102: 3592.88 | I102: 4191.69 | J102: 4790.5
B103: 99 | C103: 598.81 | D103: 1197.63 | E103: 1796.44 | F103: 2395.25 | G103: 2994.06 | H103: 3592.88 | I103: 4191.69 | J103: 4790.5
B104: 100 | C104: 598.81 | D104: 1197.63 | E104: 1796.44 | F104: 2395.25 | G104: 2994.06 | H104: 3592.88 | I104: 4191.69 | J104: 4790.5

Sheet Assistenza (hidden)
A1: Bene | B1: Premi netti Assistenza
A2: Rimborso | B2: 16.53
A3: Diaria | B3: 24.79
